Workbook

Sheet Cover Page
D1: Add company logo
K2: Version 25.1b (for co-incinerators) - 27/11/25
K4: Note that there is another version of this template available for incinerators
B8: Add photo
K13: Notes:
K14: This template may require adjustments by individual operators to meet specific reporting requirements as defined in the site Permit(s)
B29: Annual Performance Report 2025
B31: Permit EPR/XP3030XX
B33: Enviropower Ltd
B35: other name of facility (if applicable)
B37: Enviropower Ltd
B39: Year: | C39: 2025
B41: Address: | C41: Unit 7 Marlborough Business Centre, 24 Marlborough Road, Lancing Business Park, Lancing, West Sussex, BN15 8TP
B43: Tel: | C43: 01903 768239
B45: Email: | C45: joe@enviropowerltd.co.uk
B47: Prepared by: | C47: Joe Timms | F47: Position: | G47: Operations Director
B49: Approved by: | C49: Joe Timms | F49: Position: | G49: Operations Director
B51: Version: | C51: 1
B53: Issue Date:

Sheet Facility Info
A1: =+'Cover Page'!$B$29 -> Annual Performance Report 2025 | E1: =+'Cover Page'!$B$33 -> Enviropower Ltd
A3: Plant Description and Design | K3: Notes:
A5: The main purpose of the activity at the installation is to burn residual non-hazardous construction and demolition waste as fuel for the production of steam. The steam is used to drive a steam turbine to produce electricity for export to the national grid. The installation covers the entire combustion plant including all combustion lines, waste reception, storage, waste-fuel and air supply systems, boiler, facilities for the treatment of exhaust gases, on-site facilities for handling and storage of residues and waste water, stack, devices and systems for controlling combustion operations, recording and monitoring conditions. The plant has a design capacity of 9.5te/hr, which equates to approximately 75,000 tonnes per year at 7884 hour operation. The are two identical combustion lines. The heat produced is used to generate electricity for export to the national grid. The process generates approximately 4MW of electricity for export to the national grid. Facilities are maintained to allow steam or hot water pass-outs such that opportunities for use of heat may be capitalised upon should they become practicable. | K5: Include summary of plant design, design capacity, no. of combustion lines, electrical and heat capacity and any other general information that describes the facility, its location and purpose
A20: Summary of Operational Processes and Procedures
A22: Raw Materials: Waste is delivered to the plant via the waste recycling facility adjacent to the installation where it’s deposited into the inlet hopper of a Untha mobile-e shredder. The waste is then reduced to a maximum particle size of approximately 100mm. Ferrous and non-ferrous metals are then removed by a magnet and eddy current separator before the shredded waste is transferred to the fuel storage area from where it is fed into one of two reciprocating grate stoker fired combustion units and then incinerated. The furnaces are fitted with secondary chambers where the resulting flue gas is retained for >2seconds at >850 oC to ensure complete combustion. Urea is injected into the hot flue gas in the secondary chamber to reduce oxides of nitrogen (NOx) to nitrogen and water. The flue gas then passes through a heat exchanger where steam is raised to drive a steam turbine. The flue gas is then treated with sodium bicarbonate to neutralise acid gases and activated carbon to remove heavy metals, volatile organic compounds (VOCs) and dioxins and furans. Raw materials used in the process, apart from those referred to above, include small quantities of water treatment chemicals, oils, lubricants and biocides. These are all stored in bunded enclosures in the main process building. Combustion Process: There are two waste combustion streams in parallel. Each stream is served by a Talbott Bio-10000 moving grate combustor. At the end of the grate the solid residues fall into a water quench chamber and are then conveyed to storage bay. Primary combustion air is extracted from within the building and fed in below the waste through the grate bars and above the waste mass to promote good combustion. Secondary combustion air is injected into a cylindrical secondary chamber where it is mixed with the hot flue gas and the temperature raised to >850 oC for more than 2 seconds. Urea is injected into the outlet of the combustion chamber to react with the oxides of nitrogen, chemically reducing them to nitrogen and water. Auxiliary natural gas burners are fitted to assist in maintaining gas temperatures above 850oC for 2 seconds with a minimum of 6% oxygen content in the combustor. The oxygen concentration and temperature are carefully controlled to minimise dioxin emissions. Energy Recovery: The steam generating boilers are located at the exit of the flue gas from the secondary chamber. Hot gases pass through a series of heat exchangers and superheaters and finally through an economiser. The steam is fed to a steam turbine which generates electricity. Water for steam generation is taken from the town’s water main and is treated prior to use in the boilers. Steam is condensed in an air cooled vacuum condenser and then recycled to the boiler. All process waste waters are discharged directly to sewer in accordance with a trade effluent consent. Gas Cleaning: Flue gases pass from the boiler to the gas cleaning equipment. The design of the boilers is such that the flue gas temperature is quickly reduced through the critical temperature range thus minimising dioxin reformation. The gas enters a reaction chamber where sodium bicarbonate and activated carbon are injected to neutralise acid gases and absorb (primarily) dioxins, volatile organic compounds (VOCs), PAHs and mercury. The sodium bicarbonate injection rate is automatically controlled by upstream management of hydrogen chloride (HCl) and sulphur dioxide (SO2), the HCl and SO2 concentrations being continually monitored by CEMS to optimise sodium bicarbonate usage. Nitrogen oxides (NOx) abatement is achieved by the use of selective non-catalytic reduction (SNCR) and flue gas recirculation. The SNCR is based on the injection of urea into the furnace chambers before the sodium bicarbonate and carbon injection and before the gas passes to the bag filters. Bag filters remove the fine ash plus excess and spent sorbent as the gases pass across the bag fabric. The build up of the latter two enhances the performance of the system. Reverse pulses of compressed air are used to remove the accumulated particulate (“APC residues”) from the bags. The APC residues fall into a collection hopper and from there into 1m3 capacity ‘tote’ bags which are sealed when full and then stored within the main building prior to transport to a suitably licensed hazardous waste disposal facility. The cleaned gas then discharges to atmosphere via two 16-metre stacks. Ancillary Operations: De-mineralised water is required to compensate for boiler blow down losses. This is treated prior to use with chemicals such as sodium sulphate and sodium hydroxide to reduce hardness. These activities all take place within bunded areas within the main process building. Ash Handling: Bottom ash is sent off-site for aggregate recycling. APC residues are sent for disposal off site by licensed contractors subject to waste licensing legislation. Ferrous metals are sent for recovery off site by licensed contractors subject to waste permitting legislation. All other solid waste residues arising from the operation of the process will be removed from site, in enclosed containers, for disposal by suitable contractors. Liquid Effluent and Site Drainage: The plant uses approximately 20000 tonnes per year of potable water. This is largely made up of boiler blow down water. All other process waters, such as site wash down water and bottom ash quench are recycled within the process via a waste water tank and only where necessary discharged directly to sewer. There is no discharge of process liquids to controlled waters. Uncontaminated surface water is discharged via an interceptor to local surface water drains. Emissions Monitoring: Emissions from the stack are continuously monitored. In addition periodic sampling and measurement will be carried out for metals The appearance of the key release points of the main plant stack are monitored by CCTV. Date coded video records are available to supplement process records should they be required. The status log of a permit sets out the permitting history, including any changes to the permit reference number. | K22: Include summary of key processes and procedures such as (but not limited to); waste reception, control rooms, grate, bed and boiler, energy & heat generation, cooling systems, residue management, emission controls, health and safety systems, maintenance

Sheet Operational Data
A1: Annual Performance Report 2025 | E1: Name of Facility as per Permit | H1: Enviropower Ltd
A3: Operational Data
A4: Plant Size: | B4: 75000 | D4: tonnes pa | J4: Notes:
A5: Nominal net thermal input: | B5: 20 | C5: MWth | J5: * Export capacity = nominal generation capacity at the generator terminals minus nominal parasitic load. ** CHP and district heating plants only - put N/A if no heat export. *** Combusted tonnage = tonnes delivered in period + (tonnes in bunker at start of period – tonnes in bunker at end of period), or equivalent calculation depending on plant type **** Availability Definition: The availability of a line is to be calculated by the number of hours the line reported Continuously Monitored emission levels to the Regulator through the calendar year divided by the total number of hours in that year. The overall plant availability is calculated as the mean of all lines in the plant. For clarity this includes periods of abnormal operation. Rationale: The primary function of an Energy from Waste facility is the disposal of waste. It follows therefore that the availability of a plant is determined by the period of time a facility spends undertaking this activity. *****NCV of waste: This should be completed for all plants which have a boiler. Calculate using total thermal power produced by boiler/boiler efficiency, or other suitable calculation.
A6: Nominal electrical export capacity*: | B6: 5 | C6: MWe
A7: Nominal heat export capacity**: | B7: N/A | C7: MWth
A8: No. of combustion lines: | B8: 2 | C8: No. of steam turbines: | E8: 1
A10: Waste types received | B10: Unit | C10: Q1 | D10: Q2 | E10: Q3 | F10: Q4 | G10: Year Total | H10: %
A11: Household / Local Authority | B11: tonnes | C11: - | D11: - | E11: - | F11: - | G11: =SUM(C11:F11) -> 0 | H11: =IF(G11>0,G11/$G$21,"-") -> -
A12: Commercial & Industrial | C12: - | D12: - | E12: - | F12: - | G12: =SUM(C12:F12) -> 0 | H12: -
A13: Hazardous | C13: - | D13: - | E13: - | F13: - | G13: 0 | H13: -
A14: Clinical | C14: - | D14: - | E14: - | F14: - | G14: 0 | H14: -
A15: Waste wood (biomass) | C15: 5204 | D15: 8910 | E15: 11439 | F15: 13165 | G15: 38718 | H15: 0.9481572181
A16: Refuse Derived Fuel (incl. SRF) - H'hold/LA | C16: - | D16: - | E16: - | F16: - | G16: 0 | H16: -
A17: Refuse Derived Fuel (incl. SRF) - C&I | C17: - | D17: - | E17: - | F17: - | G17: 0 | H17: -
A18: Trommel Fines & Sawdust | C18: 418 | D18: 601 | E18: 486 | F18: 612 | G18: 2117 | H18: 0.05184278193
A19: Other [Please specify] | C19: - | D19: - | E19: - | F19: - | G19: 0 | H19: -
A20: Other [Please specify] | C20: - | D20: - | E20: - | F20: - | G20: 0 | H20: -
A21: Total waste received | C21: =SUM(C11:C20) -> 5622 | D21: =SUM(D11:D20) -> 9511 | E21: =SUM(E11:E20) -> 11925 | F21: =SUM(F11:F20) -> 13777 | G21: 40835
A22: Rejected Waste | C22: - | D22: - | E22: - | F22: - | G22: 0 | H22: =IF(G22>0,G22/$G$21,"-") -> -
A23: Unprocessed waste transferred out | C23: - | D23: - | E23: - | F23: - | G23: 0 | H23: =IF(G23>0,G23/$G$21,"-") -> -
A24: Total waste combusted *** | C24: 5893.8 | D24: 9169.3 | E24: 11935.4 | F24: 14116 | G24: =SUM(C24:F24) -> 41114.5
A26: Energy Usage / Export | B26: Unit | C26: Q1 | D26: Q2 | E26: Q3 | F26: Q4 | G26: Year Total | H26: KWh/te
A27: Power generated at generator terminals | B27: MWh | C27: 2156.77 | D27: 5022.83 | E27: 5724.37 | F27: 6206.06 | G27: =SUM(C27:F27) -> 19110.03 | H27: =IF(G27>0,G27*1000/$G$24,"-") -> 464.800253
A28: Power exported to grid and other external user(s) | C28: 1632.1 | D28: 3795.5 | E28: 4315.9 | F28: 4646.8 | G28: =SUM(C28:F28) -> 14390.3 | H28: =IF(G28>0,G28*1000/$G$24,"-") -> 350.0054725
A29: Power imported | C29: 301.5 | D29: 54.5 | E29: 324.8 | F29: 48.9 | G29: 729.7 | H29: =IF(G29>0,G29*1000/$G$24,"-") -> 17.74799645
A30: Indicative parasitic load | B30: % | C30: =IF(C27>0,(C27-C28)/C27,"-") -> 0.2432665514 | D30: =IF(D27>0,(D27-D28)/D27,"-") -> 0.2443502965 | E30: 0.2460480367 | F30: 0.2512479738 | G30: =IF(G27>0,1-G28/(G27+G29),"-") -> 0.2746725888
A31: Thermal Energy Exported ** | C31: - | D31: - | E31: - | F31: - | G31: =SUM(C31:F31) -> 0 | H31: =IF(G31>0,G31*1000/$G$24,"-") -> - | J31: Password for protected cells A password has been set to prevent accidental editing of cells with formulae. If you still need to make an edit for some reason then the password = 1234
A32: R1 value (if applicable) | B32: R1 | C32: - | D32: - | E32: - | F32: -
A34: Waste Disposal & Recovery | B34: Unit | C34: Q1 | D34: Q2 | E34: Q3 | F34: Q4 | G34: Year Total | H34: % inputs
A35: APC Residues - produced | B35: tonnes | C35: 292 | D35: 650 | E35: 717 | F35: 618 | G35: =SUM(C35:F35) -> 2277 | H35: =IF(G35>0,G35/$G$24,"-") -> 0.05538192122
A36: IBA - produced | C36: 555 | D36: 1403 | E36: 1024 | F36: 1229 | G36: 4211 | H36: =IF(G36>0,G36/$G$24,"-") -> 0.1024212869
A37: Metals recycling | C37: 0 | D37: 0 | E37: 0 | F37: 0 | G37: =SUM(C37:F37) -> 0 | H37: -
A38: Other | C38: 0 | D38: 0 | E38: 0 | F38: 0 | G38: 0 | H38: -
A39: Other | C39: 0 | D39: 0 | E39: 0 | F39: 0 | G39: 0 | H39: -
A40: Other | C40: 0 | D40: 0 | E40: 0 | F40: 0 | G40: 0 | H40: -
A42: Raw Material Usage | B42: Unit | C42: Q1 | D42: Q2 | E42: Q3 | F42: Q4 | G42: Year Total | H42: kg or Ltr./te
A43: Mains Water | B43: ltrs | C43: 1938000 | D43: 2750000 | E43: 3518000 | F43: 3641000 | G43: =SUM(C43:F43) -> 11847000 | H43: =IF(G43>0,G43/$G$24,"-") -> 288.1465177
A44: Other Water | B44: ltrs | C44: - | D44: - | E44: - | F44: - | G44: 0 | H44: =IF(G44>0,G44/$G$24,"-") -> -
A45: Ammonia | B45: kgs | C45: - | D45: - | E45: - | F45: - | G45: 0 | H45: -
A46: Urea | B46: kgs | C46: 20000 | D46: 20000 | E46: 40000 | F46: 40000 | G46: 120000 | H46: 2.918678325
A47: Activated Carbon | B47: kgs | C47: 0 | D47: 10000 | E47: 10000 | F47: 10000 | G47: 30000 | H47: 0.7296695813
A48: Sodium Bicarbonate | B48: kgs | C48: 206000 | D48: 452000 | E48: 492000 | F48: 553000 | G48: 1703000 | H48: 41.4209099
A49: Fuel oil | B49: ltrs | C49: - | D49: - | E49: - | F49: - | G49: 0 | H49: -
A50: Gas | B50: cuf | C50: 1088151 | D50: 734368 | E50: 916168 | F50: 111806 | G50: 2850493 | H50: 69.33060113
A51: Other | C51: - | D51: - | E51: - | F51: - | G51: 0 | H51: -
A53: Summary | B53: Line/Unit | C53: Q1 | D53: Q2 | E53: Q3 | F53: Q4 | G53: Year Total | I53: Hrs in year
A54: Availability of waste combustion by line, hrs **** | B54: 1 | C54: 503.31 | D54: 565.51 | E54: 1275.83 | F54: 2143.5 | G54: =SUM(C54:F54) -> 4488.15 | H54: =+G54/$I$54 -> 0.5123458904 | I54: 8760 | J54: Change this figure to 8784 in a leap year
B55: 2 | C55: 670.48 | D55: 1464.05 | E55: 1603.25 | F55: 2139.83 | G55: 5877.61 | H55: =+G55/$I$54 -> 0.6709600457
B56: 3 | C56: - | D56: - | E56: - | F56: - | G56: 0 | H56: 0
B57: 4 | C57: - | D57: - | E57: - | F57: - | G57: 0 | H57: 0
B58: 5 | C58: - | D58: - | E58: - | F58: - | G58: 0 | H58: 0
A59: Hours of turbine operations, hrs | B59: 1 | C59: 792.16 | D59: 2004.88 | E59: 1614.04 | F59: 2161.81 | G59: 6572.89 | H59: 0.7503299087
A60: Hours of turbine operations, hrs | B60: 2 | C60: - | D60: - | E60: - | F60: - | G60: 0 | H60: 0
A61: Hours of heat / steam export** | B61: hours | C61: - | D61: - | E61: - | F61: - | G61: 0 | H61: =IF(B61>0,G60/I54,"n/a") -> 0
A62: Net calorific value of waste***** | B62: MJ/kg | C62: 15.551 | D62: 16.719 | E62: 16.352 | F62: 16.093 | G62: 65
A63: Abnormal operation events | B63: qty. | C63: 0 | D63: 4 | E63: 2 | F63: 0 | G63: 6 | H63: =IF(G63>0,"yes","no") -> yes
A64: Abnormal operation duration | B64: hours | C64: 0 | D64: 6 | E64: 1 | G64: 7 | H64: =+(G64)/I54 -> 0.000799086758
A65: Permit Breaches | B65: qty. | C65: 0 | D65: 1 | E65: 0 | F65: 0 | G65: 1 | H65: =IF(G65>0,"yes","no") -> yes

Sheet Operational Summary
A1: Annual Performance Report 2025 | E1: Name of Facility as per Permit | I1: Enviropower Ltd
A3: Summary of Plant Operations and Maintenance during the reporting year | K3: Notes:
A5: We operated at reduced capacity for the whole year due to a turbine issue. | K5: Include summary of key operational and/or maintenance activity undertaken in the year, such as any major component upgrades and/or replacements
A29: 2025 | B29: Plant shut-downs
A30: Start date | B30: End date | C30: Reason for shut-down | K30: Provide a very brief reason for plant shut-down e.g. "Shut-down prior to major outage"; "Emergency shut-down due to boiler tube leak". All emergency shut-downs must be listed (irrespective of whether or not they were required to be reported to the EA). There is no need to include periods of hot-standby here (e.g. to clear feed chute hopper blockages). For clinical waste incinerators which require regular shut-downs for boiler cleaning, there is no need to record these here (only those prior to major outages, and emergency shut-downs).
A31: 2025-01-01 | B31: 2025-01-08 | C31: Line A down for general maintenance.
A32: 2025-01-01 | B32: 2025-01-09 | C32: Line B down for general maintenance.
A33: 2025-01-13 | B33: 2025-02-20 | C33: Line A down for general maintenance.
A34: 2025-01-13 | B34: 2025-02-19 | C34: Line B down for general maintenance.
A35: 2025-02-23 | B35: 2025-03-17 | C35: Line A down for general maintenance.
A36: 2025-02-23 | B36: 2025-02-25 | C36: Line B down for general maintenance.
A37: 2025-03-21 | B37: 2025-03-31 | C37: Line B down for general maintenance.
A38: 2025-04-01 | B38: 2025-04-24 | C38: Line B down for general maintenance.
A39: 2025-04-25 | B39: 2025-06-30 | C39: Line A down for general maintenance.
A40: 2025-05-27 | B40: 2025-05-31 | C40: Line B down for turbine maintenance.
A41: 2025-06-03 | B41: 2025-06-03 | C41: Line B down due to running out of Sorbacal (Lime)
A42: 2025-06-07 | B42: 2025-06-07 | C42: Line B down as additive silo emptied to swap product from Sorbacal (Lime) to Sodium Bicarbonate.
A43: 2025-06-25 | B43: 2025-06-25 | C43: Line B down for superheater reapair.
A44: 2025-07-01 | B44: 2025-07-18 | C44: Line A down for general maintenance.
A45: 2025-07-22 | B45: 2025-07-26 | C45: Line A down for general maintenance.
A46: 2025-07-12 | B46: 2025-07-31 | C46: Line B down for general maintenance.
A47: 2025-09-07 | B47: 2025-09-22 | C47: Line A down for general maintenance.
A48: 2025-09-07 | B48: 2025-09-08 | C48: Line B down for turbine maintenance.
A49: 2025-09-14 | B49: 2025-09-15 | C49: Line B down due to compressed air system failure.
A50: 2025-09-23 | B50: 2025-09-25 | C50: Line B down for general maintenance.

Sheet Perf. Form 1
A1: =+'Cover Page'!C39 -> 2025 | B1: Annual Reporting Performance Form 1
A3: =+'Cover Page'!B31 -> Permit EPR/XP3030XX | F3: Operator: | G3: =+'Cover Page'!B37 -> Enviropower Ltd
A4: Facility: | B4: =+'Cover Page'!B33:I33 -> Enviropower Ltd | F4: Form: | G4: Performance 1
A6: Reporting Period from: | D6: 2025-01-01 | F6: to: | G6: 2025-12-31
A8: =+A1 -> 2025 | B8: Annual Reporting of Waste Disposal and Recovery
A9: Waste Description | C9: Disposal Route(s) | E9: Disposal Tonnes | G9: Recovery Tonnes | I9: % / tonne of waste incinerated
A10: 1) Hazardous Wastes
A11: APC Residues | C11: 1 | E11: 2276.97 | G11: 0 | I11: =IF((E11+G11)>0,(E11+G11)/'Operational Data'!$G$21, "-") -> 0.05576025468
A12: IBA | C12: 1 | E12: 327.36 | G12: 0 | I12: =IF((E12+G12)>0,(E12+G12)/'Operational Data'!$G$21, "-") -> 0.008016652382
I13: =IF((E13+G13)>0,(E13+G13)/'Operational Data'!$G$21, "-") -> -
I14: =IF((E14+G14)>0,(E14+G14)/'Operational Data'!$G$21, "-") -> -
A15: Total Hazardous Waste | E15: =SUM(E11:F14) -> 2604.33 | G15: =SUM(G11:H14) -> 0 | I15: =IF((E15+G15)>0,(E15+G15)/'Operational Data'!$G$21, "-") -> 0.06377690707
A17: 2) Non-Hazardous Wastes
A18: IBA | C18: 1 | E18: 0 | G18: 3884 | I18: =IF((E18+G18)>0,(E18+G18)/'Operational Data'!$G$21, "-") -> 0.09511448512
A19: Ferrous Metal | C19: 1 | E19: 0 | G19: 0 | I19: =IF((E19+G19)>0,(E19+G19)/'Operational Data'!$G$21, "-") -> -
A20: Process Water | C20: 0 | E20: 0 | G20: 0 | I20: =IF((E20+G20)>0,(E20+G20)/'Operational Data'!$G$21, "-") -> -
I21: =IF((E21+G21)>0,(E21+G21)/'Operational Data'!$G$21, "-") -> -
I22: =IF((E22+G22)>0,(E22+G22)/'Operational Data'!$G$21, "-") -> -
A23: Total Non-Hazardous Waste | E23: =SUM(E18:F22) -> 0 | G23: =SUM(G18:H22) -> 3884 | I23: =IF((E23+G23)>0,(E23+G23)/'Operational Data'!$G$21, "-") -> 0.09511448512
A24: TOTAL WASTE | E24: =+E23+E15 -> 2604.33 | G24: =+G23+G15 -> 3884 | I24: =IF((E24+G24)>0,(E24+G24)/'Operational Data'!$G$21, "-") -> 0.1588913922
A26: Operator’s comments :
A31: =+A1 -> 2025 | B31: Annual Reporting of Water and Other Raw Material Usage
A32: Raw Material | E32: Usage | G32: Unit | H32: Specific Usage | J32: Unit
A33: Mains Water | E33: =+'Operational Data'!G43/1000 -> 11847 | G33: m3 | H33: =IF(E33>0,E33/'Operational Data'!$G$21,"-") -> 0.2901187707 | J33: m3/te
A34: Total Water | E34: =+'Operational Data'!G44+'Operational Data'!G43/1000 -> 11847 | G34: m3 | H34: =IF(E34>0,E34/'Operational Data'!$G$21,"-") -> 0.2901187707 | J34: m3/te
A35: Urea / Ammonia | E35: =+'Operational Data'!G46 -> 120000 | G35: kg | H35: =IF(E35>0,E35/'Operational Data'!$G$21,"-") -> 2.938655565 | J35: kg/te
A36: Activated Carbon | E36: =+'Operational Data'!G47 -> 30000 | G36: kg | H36: =IF(E36>0,E36/'Operational Data'!$G$21,"-") -> 0.7346638913 | J36: kg/te
A37: Lime / hydrated lime / Sodium Bicarb. | E37: =+'Operational Data'!G48 -> 1703000 | G37: kg | H37: =IF(E37>0,E37/'Operational Data'!$G$21,"-") -> 41.70442023 | J37: kg/te
A39: Operator’s comments :
A43: =+A31 -> 2025 | B43: Annual Reporting of other performance indicators
A44: Parameter | C44: Results by Line
C45: A1 | D45: A2 | E45: A3 | F45: A4 | G45: A5 | I45: Turbine 1 | J45: Turbine 2
A46: Operating hours for the year, hours | C46: 4488 | D46: 5878 | E46: 0 | F46: 0 | G46: 0 | H46: 0 | I46: 6573 | J46: 0
A47: Number of periods of abnormal operation, qty. | C47: 2 | D47: 4 | E47: 0 | F47: 0 | G47: 0 | H47: 0 | I47: 0 | J47: 0
A48: Cumulative hours of abnormal operation for this year, hours | C48: 1 | D48: 6 | E48: 0 | F48: 0 | G48: 0 | H48: 0 | I48: 0 | J48: 0
A50: Operator’s comments :
A54: Signed: | B54: J Timms | G54: Date: | H54: 2026-02-06

Sheet Energy Form 1
A1: =+'Cover Page'!C39 -> 2025 | B1: Annual Reporting of Energy Usage/Export
A3: =+'Cover Page'!B31 -> Permit EPR/XP3030XX | F3: Operator: | G3: =+'Cover Page'!B37 -> Enviropower Ltd
A5: Facility: | B5: =+'Cover Page'!B33:I33 -> Enviropower Ltd | F5: Form: | G5: Energy 1
A7: Reporting Period from: | D7: =+'Perf. Form 1'!D6:E6 -> 2025-01-01 | F7: to: | G7: =+'Perf. Form 1'!G6:H6 -> 2025-12-31
A9: Energy Source | D9: Energy Usage | F9: Unit | G9: Specific Usage (KWh/tonne incinerated
A10: Electricity Produced | D10: =+'Operational Data'!G27 -> 19110.03 | F10: MWh | G10: =+'Operational Data'!H27 -> 464.800253
A11: Electricity Imported | D11: =+'Operational Data'!G29 -> 729.7 | F11: MWh | G11: =+'Operational Data'!H29 -> 17.74799645
A12: Electricity Exported | D12: =+'Operational Data'!G28 -> 14390.3 | F12: MWh | G12: =+'Operational Data'!H28 -> 350.0054725
A13: Gas Oil | F13: tonnes
A14: Steam/hot water exported | D14: =+'Operational Data'!G31 -> 0 | F14: GWh | G14: =+'Operational Data'!H31 -> -
A18: Operator’s comments :
A29: Signed: | B29: J Timms | G29: Date: | H29: 2026-02-06

Sheet Permit Compliance
A1: =+'Cover Page'!$B$29 -> Annual Performance Report 2025 | E1: Name of Facility as per Permit | I1: Enviropower Ltd
A3: Summary of Permit Compliance
A5: Compliance with permit limits for continuously monitored pollutants
A7: The plant met its emission limits as shown in the table below:
A8: Substance | C8: Percentage time compliant during operationNote 1 | L8: Notes:
C9: Half-hourly limit | F9: Daily limit | L9: Note 1: Please report to 2 decimal places, i.e. xx.xx% Note 2: Please enter into this table any permit non-compliances that the EA has given a CCS score for. Please also enter any other non-compliances which you have notified to the EA (e.g. ELV exceedances) but which have not yet been assessed by the EA. There is no need to enter any notifications which were subsequently assessed by the EA not to be permit breaches. Note 3: Please enter information here (rather than just referencing the notifications that were sent to the EA) including where relevant the incineration line reference, pollutant and value of the measured result for any ELV exceedances.
A10: Particulates | C10: 1 | F10: 1
A11: Oxides of nitrogen | C11: 1 | F11: 1
A12: Sulphur dioxide | C12: 0.9999 | F12: 1
A13: Carbon monoxide | C13: 100% 95% of 10-min averages | F13: 1
A14: Total organic carbon | C14: 1 | F14: 1
A15: Hydrogen chloride | C15: 1 | F15: 1
A16: Hydrogen fluoride | C16: xx.xx % | F16: xx.xx %
C17: =AVERAGE(C10:E16) -> 0.99998 | F17: =AVERAGE(F10:I16) -> 1
A19: Summary of non-compliances under the permit Note 2
A20: Date | B20: Summary of non-compliance Note 3 | D20: Reason | G20: Measures taken to prevent reoccurrence | H20: CCS score if applicable*
H21: Impact | I21: Root cause
A22: 2025-05-30 | B22: Line B - SO2 Half hour = 246.0mg/nm3 | D22: Filtration system not pre-coated during start-up. | G22: Procedure reviewed and step for pre-coating filter during start-up added and then briefed out to all staff.
A27: *If the Environment Agency (EA) has given a Compliance Classification Scheme (CCS) score due to a permit non-compliance it should be entered here (CCS4 = No impact; CCS3 = Minor impact; CCS2 = Significant impact; CCS1 = Major impact). If the EA has not yet assessed a non-compliance which you have notified to them, these columns should be left blank.
A29: Summary of any complaints received and actions to taken to resolve them.
A30: Date | B30: Summary of complaint [including Line/Reference] | E30: Reason (including whether substantiated by the operator or the EA) | H30: Measures taken to prevent reoccurrence

Sheet Improvements
A1: =+'Cover Page'!$B$29 -> Annual Performance Report 2025 | E1: =+'Cover Page'!$B$33 -> Enviropower Ltd
A3: Summary of Plant Improvements
A5: Summary of any efficiency improvements that have been completed within the year.
A6: None.
A16: Summary of any permit improvement conditions that have been completed within the year and the resulting environmental benefits.
A17: None.
A27: Summary of any changes to the plant or operating techniques which required a variation to the permit and a summary of the resulting environmental impact.
A28: None.
A38: Summary of any other improvements made to the plant or planned to be made and a summary of the resulting environmental benefits.
A39: Line B - We are looking to install an APCr recirculation system. The benefit of this is that we should be able to recirculate APCr back into the system and use less sodium bicarbonate.

Sheet Public Liaison
A1: =+'Cover Page'!$B$29 -> Annual Performance Report 2025 | E1: =+'Cover Page'!$B$33 -> Enviropower Ltd
A3: Details of Public & Stakeholder Liaison
A5: Summary of events held during the reporting year.
A6: Date | C6: Description
A16: List of events planned for next year
A17: Date | C17: Description
A29: If you wish to be involved in the public liaison programme, please contact _________________

Sheet CO2 N2O
A1: =+'Cover Page'!$B$29 -> Annual Performance Report 2025 | C1: Name of Facility as per Permit | E1: Enviropower Ltd
A3: Carbon dioxide emissions and biogenic content of waste inputs | F3: Notes:
A5: Carbon dioxide emissions (all types of plant)
B6: Annual mass of carbon dioxide released | C6: tonnes | D6: ='Operational Data'!G24*'CO2 N2O'!D7 -> 38729.859
B7: Annual mass of carbon dioxide released per tonne of waste burned | C7: t CO2 / t waste | D7: 0.942
B8: Annual mass of carbon dioxide released per MWh of energy exported | C8: t CO2 / MWh export | D8: =D6/'Operational Data'!G28 -> 2.69138649
B9: Description of how annual carbon dioxide mass emission has been calculated. See Note 1 | C9: using Tolvik report 2022 method: 0.942 tCO2/t waste | F9: Note 1: All permits require operators to continuously monitor CO2 to EN14181 and flow to BS EN 16911-2 (unless otherwise agreed in writing). Operators must therefore use the results from these instruments to calculate their annual CO2 emissions. Where an operator does not have a flow meter calibrated to BS EN 16911-2, the averaged flow measurement from that year's periodic monitoring can be used instead. If the plant does not have calibrated CO2 CEMS, a suitably justified emissions factor can be used.
A10: Nitrous oxide emissions (only plants which use ammonia or urea to abate NOx emissions)
B11: Annual mass emissions of nitrous oxide | C11: tonnes N2O | D11: =('Operational Data'!G24*0.0981)/1000 -> 4.03333245
B12: Description of how annual nitrous oxide mass emission has been calculated See Note 2 | C12: using 2021 Pollution Inventory data method: 0.0981 kgN2O/t waste | F12: Note 2: All permits require operators to continuously monitor N2O to EN14181 and flow to BS EN 16911-2, unless otherwise agreed in writing. Operators must therefore use the results from these instruments to calculate their annual N2O emissions. Where an operator does not have a flow meter calibrated to BS EN 16911-2, the averaged flow measurement from periodic monitoring can be used instead. If the plant does not have calibrated N2O CEMS, data from periodic monitoring or a suitably justified emissions factor can be used instead.
A13: Total annual carbon dioxide + nitrous oxide emissions. See Note 3. | C13: tonnes CO2e | D13: =(D11*265)+D6 -> 39798.6921 | F13: Note 3: Total annual carbon dioxide and nitrous oxide emissions reported as carbon dioxide equivalent where 1 tonne nitrous oxide is equivalent to 265 tonnes carbon dioxide.
A14: Biogenic CO2 emissions (See Note 4) | F14: Note 4: Only plants combusting residual municipal waste, refuse derived fuel or solid recovered fuel need complete this section.
B15: Percentage of total carbon dioxide emissions arising from biogenic waste | C15: %
B16: No. of measurements undertaken | C16: Number
B17: Description of how percentage biogenic carbon dioxide emissions have been measured or calculated. See Note 5 | F17: Note 5: The results from C14 sampling should be used if this is carried out at the plant (either via an installed sampler or from spot samples). Otherwise, as an approximation (and in lieu of any more accurate metrics which may be developed in future), the measured or estimated biogenic fraction by net calorific value (see Note 6) can be assumed to be the same as the biogenic CO2 fraction of the total CO2 emissions from the plant.
A18: Biogenic fraction of waste feedstock (See Note 4)
B19: Yearly average biogenic percentage of the waste by net calorific value (NCV) | C19: %
B20: Description of how biogenic percentage (by NCV) has been calculated or estimated. See Note 6 | F20: Note 6: If C14 sampling is carried out at the plant, the methodology set out in the embedded document entitled "Renewable Energy Association Energy Content of Fuels - Description of Method" embedded below can be used to calculate the biogenic percentage by net calorific value. Otherwise, data from waste sampling or BIOMA software can be used; or if none of these are available, an estimated figure with justification or a figure assumed on the basis of up-to-date industry data can be used.
B21: Yearly average biogenic percentage of the waste by mass | C21: %
B22: If waste sampling undertaken, no. of samples used to ascertain average biogenic percentages above | C22: Number
B23: Description of how biogenic percentage (by mass) has been calculated or estimated. See Note 7 | F23: Note 7: Where available, data from waste sampling should be used; otherwise, an estimated figure with justification can be used, or a figure assumed on the basis of up-to-date industry data.
B25: Comments:

Sheet Residues
A1: Annual Performance Report 2025 | E1: Name of Facility as per Permit | G1: Enviropower Ltd
A3: Summary of Residue Handling for the reporting year
A5: Residues handled according to our internal residue handling procedures. APC Residue destination is Augean. Non-Hazardous IBA destination is Rabbit Waste Management. Hazardous IBA destination is Augean. | K5: Include in here a summary of residue handling regimes and destinations
A28: Residue Quality Monitoring Requirements
A30: Summary of monitoring undertaken and compliance
A31: Sampling and analysis as per permit requirements.
A38: Commentary on any specific events
A39: Date & Event | C39: Description
A52: Residue Quality Monitoring Results
A53: Parameter (unit) | C53: Limit* | D53: Normal Operation
D54: Bottom ash | F54: APC Residues
A55: Loss on Ignition (average %) | C55: <5%
A56: Total Organic Carbon (average %) | C56: <3% | D56: 1.51
A57: No. of Assessments Undertaken | C57: --- | D57: 4 | F57: 4
A58: No. of Hazardous Results | C58: --- | D58: 0
A59: * The permit will specify a limit of either 5% loss on ignition or 3% total organic carbon. If both are measured anyway, please enter the results here, even where the limit does not apply.
A61: Comments :

Sheet Water
A1: =+'Cover Page'!$B$29 -> Annual Performance Report 2025 | E1: =+'Cover Page'!$B$33 -> Enviropower Ltd
A3: Emissions to Water
A5: Summary of monitoring undertaken and compliance
A6: None.
A13: Commentary on any specific events
A14: Date & Event | C14: Description
A22: Emissions to Water / Sewer
A23: Parameter | D23: Monitoring Frequency | F23: Limit | G23: Target | H23: Max. | I23: Average

Sheet Air (periodic)
A1: =+'Cover Page'!$B$29 -> Annual Performance Report 2025 | E1: =+'Cover Page'!$B$33 -> Enviropower Ltd
A3: Emissions to Air (periodically monitored)
A5: Summary of monitoring undertaken, standards used and compliance | K5: Notes:
A6: Continuous emissions monitoring as per permit requirements. | K6: Template may require adjustment for any bespoke monitoring requirements of permit - please also check that all default ELV values, reference periods and the stated oxygen reference value match those for your plant, and edit if necessary
A9: Results of emissions to air that are periodically monitored - oxygen reference 11%
A10: Substance | C10: Ref. Period | D10: Emission Limit Value | F10: Average | K10: User to add additional tables as necessary, depending on whether quarterly or bi-annual reporting is required for the compliance year
F11: A1 Jan-Jun | G11: A2 Jan-Jun | H11: A1 Jul-Dec | I11: A2 Jul-Dec | J11: A5
A12: Hydrogen fluoride | C12: 1 hr | D12: 1 mg/m3 | F12: 0.03 | G12: 0.3 | H12: 0.1 | I12: 0.14
A13: Cd and Tl and their compounds | C13: 0.5-8hrs | D13: 0.02 mg/m3 | F13: 0.0005 | G13: 0.0029 | H13: 0.0006 | I13: 0.001
A14: Hg and its compounds | C14: 0.5-8hrs | D14: 0.02 mg/m3 | F14: 0.0025 | G14: 0.0028 | H14: 0.0013 | I14: 0.0018
A15: Sb, As, Pb, Cr, Co, Cu, Mn, Ni, V and their compounds | C15: 0.5-8hrs | D15: 0.3 mg/m3 | F15: 0.0185 | G15: 0.1172 | H15: 0.0314 | I15: 0.0453
A16: Dioxins & Furans (I-TEQ) | C16: 6-8hrs | D16: 0.06 ng/m3 | F16: 0.0105 | G16: 0.0514 | H16: 0.0261 | I16: 0.0091
A17: PCBs (WHO-TEQ Humans / Mammals) | C17: 6-8hrs | D17: None set ng/m3 | F17: 0.0012 | G17: 0.0305 | H17: 0.003 | I17: 0.0009
A18: PCBs (WHO-TEQ Fish) | C18: 6-8hrs | D18: None set ng/m3 | F18: 0.0001 | G18: 0.0014 | H18: 0.0002 | I18: 0
A19: PCBs (WHO-TEQ Birds) | C19: 6-8hrs | D19: None set ng/m3 | F19: 0.0025 | G19: 0.043 | H19: 0.0096 | I19: 0
A20: Dioxins & Furans (WHO-TEQ Humans / Mammals) | C20: 6-8hrs | D20: None set ng/m3 | F20: 0.0092 | G20: 0.0451 | H20: 0.022 | I20: 0.0079
A21: Dioxins & Furans (WHO-TEQ Fish) | C21: 6-8hrs | D21: None set ng/m3 | F21: 0.0103 | G21: 0.0538 | H21: 0.0225 | I21: 0.009
A22: Dioxins & Furans (WHO-TEQ Birds) | C22: 6-8hrs | D22: None set ng/m3 | F22: 0.0279 | G22: 0.0968 | H22: 0.1194 | I22: 0.0255
A23: Anthanthrene | C23: 6-8hrs | D23: None set mg/m3 | H23: 0 | I23: 0
A24: Benzo(a)anthracene | C24: 6-8hrs | D24: None set mg/m3 | H24: 0 | I24: 0
A25: Benzo(a)pyrene | C25: 6-8hrs | D25: None set mg/m3 | H25: 0 | I25: 0
A26: Benzo(b)fluoranthene | C26: 6-8hrs | D26: None set mg/m3 | H26: 0.0001 | I26: 0
A27: Benzo(b)naptho(2,1-d) thiophene | C27: 6-8hrs | D27: None set mg/m3 | H27: 0.0001 | I27: 0
A28: Benzo(c)phenanthrene | C28: 6-8hrs | D28: None set mg/m3 | H28: 0 | I28: 0
A29: Benzo(ghi)perylene | C29: 6-8hrs | D29: None set mg/m3 | H29: 0 | I29: 0
A30: Benzo(k)fluoranthene | C30: 6-8hrs | D30: None set mg/m3 | H30: 0 | I30: 0
A31: Cholanthrene | C31: 6-8hrs | D31: None set mg/m3 | H31: 0 | I31: 0
A32: Chrysene | C32: 6-8hrs | D32: None set mg/m3 | H32: 0.0001 | I32: 0
A33: Cyclopenta(cd)pyrene | C33: 6-8hrs | D33: None set mg/m3 | H33: 0 | I33: 0
A34: Dibenzo(ai)pyrene | C34: 6-8hrs | D34: None set mg/m3
A35: Dibenzo(ah)anthracene | C35: 6-8hrs | D35: None set mg/m3 | H35: 0 | I35: 0
A36: Fluoranthene | C36: 6-8hrs | D36: None set mg/m3 | H36: 0 | I36: 0.0001
A37: Indeno(123-cd) pyrene | C37: 6-8hrs | D37: None set mg/m3 | H37: 0 | I37: 0
A38: Naphthalene | C38: 6-8hrs | D38: None set mg/m3 | H38: 0.0001 | I38: 0.002
A39: Comments :

Sheet Air (CEMS)
A1: =+'Cover Page'!$B$29 -> Annual Performance Report 2025 | I1: =+'Cover Page'!$B$33 -> Enviropower Ltd
A3: Emissions to Air (continously monitored)
N4: Notes:
A5: Summary of monitoring undertaken, standards used and compliance | N5: Template may require adjustment for any bespoke monitoring requirements of permit
A6: Continuous emissions monitoring as per permit requirements. | N6: Please check that all default ELV values, reference periods and the stated oxygen reference value match those for your plant, and edit if necessary
N7: Report to 1 decimal place
A11: Results of emissions to air that are continuously monitored (maximum and average values for each line) - oxygen reference 11%
A12: Substance | B12: Reference Period | C12: Emission Limit Value | D12: A1 | F12: A2 | H12: A3 | J12: A4 | L12: A5
D13: Max. | E13: Avg. | F13: Max. | G13: Avg. | H13: Max. | I13: Avg. | J13: Max. | K13: Avg. | L13: Max. | M13: Avg.
A14: Oxides of nitrogen | B14: Daily mean | C14: 150 mg/m3 | D14: =NOx!O19 -> 148.7 | E14: =NOx!N19 -> 120.5833333 | F14: =NOx!O34 -> 148.2 | G14: =NOx!N34 -> 146.5583333
B15: ½ hourly mean* | C15: 300 mg/m3 * | D15: =NOx!M19 -> 223.7 | E15: =NOx!L19 -> 120.825 | F15: =NOx!M34 -> 244.5 | G15: =NOx!L34 -> 146.7333333
A16: Particulates | B16: Daily mean | C16: 5 mg/m3 | D16: =Particulates!O19 -> 0.9 | E16: =Particulates!N19 -> 0.04166666667 | F16: =Particulates!O34 -> 3 | G16: =Particulates!N34 -> 0.025
B17: ½ hourly mean* | C17: 30 mg/m3 * | D17: =Particulates!M19 -> 3.7 | E17: =Particulates!L19 -> 0.09166666667 | F17: =Particulates!M34 -> 4.7 | G17: =Particulates!L34 -> 0.075
A18: Total Organic Carbon | B18: Daily mean | C18: 10 mg/m3 | D18: =TOC!O19 -> 3.5 | E18: =TOC!N19 -> 0.825 | F18: =TOC!O34 -> 3.8 | G18: =TOC!N34 -> 1.463636364
B19: ½ hourly mean* | C19: 20 mg/m3 * | D19: =TOC!M19 -> 13.3 | E19: =TOC!L19 -> 0.9333333333 | F19: =TOC!M34 -> 5.1 | G19: =TOC!L34 -> 1.558333333
A20: Hydrogen chloride | B20: Daily mean | C20: 8 mg/m3 | D20: =HCl!O19 -> 8.2 | E20: =HCl!N19 -> 6.091666667 | F20: =HCl!O34 -> 22 | G20: =HCl!N34 -> 7.883333333
B21: ½ hourly mean* | C21: 60 mg/m3 * | D21: =HCl!M19 -> 40.1 | E21: =HCl!L19 -> 6.141666667 | F21: =HCl!M34 -> 343.4 | G21: =HCl!L34 -> 7.9
A22: Sulphur dioxide | B22: Daily mean | C22: 40 mg/m3 | D22: ='SO2'!O19 -> 39.4 | E22: ='SO2'!N19 -> 26.825 | F22: ='SO2'!O34 -> 56.2 | G22: ='SO2'!N34 -> 31.13333333
B23: ½ hourly mean* | C23: 200 mg/m3 * | D23: ='SO2'!M19 -> 340.7 | E23: ='SO2'!L19 -> 26.825 | F23: ='SO2'!M34 -> 791.1 | G23: ='SO2'!L34 -> 31.36666667
A24: Carbon monoxide | B24: Daily mean | C24: 50 mg/m3 | D24: ='CO 95% 10 min'!Q22 -> 16.3 | E24: ='CO 95% 10 min'!P22 -> 2.683333333 | F24: ='CO 95% 10 min'!Q37 -> 5 | G24: ='CO 95% 10 min'!P37 -> 3.241666667
B25: 95%ile 10-min avg* | C25: 150 mg/m3 * | D25: ='CO 95% 10 min'!M22 -> 7.966666667 | E25: ='CO 95% 10 min'!N22 -> 2.858333333 | F25: ='CO 95% 10 min'!M37 -> 5.583333333 | G25: ='CO 95% 10 min'!N37 -> 3.358333333
A26: Ammonia | B26: Daily mean | C26: 15 mg/m3 | D26: ='NH3'!O19 -> 0.4 | E26: ='NH3'!N19 -> 0.05833333333 | F26: ='NH3'!O34 -> 0.2 | G26: ='NH3'!N34 -> 0.025
A27: * = delete if your plant does not have these limits
A28: Comments :

Sheet HCl
A1: =+'Cover Page'!$B$29 -> Annual Performance Report 2025 | E1: =+'Cover Page'!$B$33 -> Enviropower Ltd
A3: Monitoring of Hydrogen Chloride emissions | D3: Whole Installation | G3: See Notes in Cell Q3 | J3: =+A3 -> Monitoring of Hydrogen Chloride emissions | N3: Per Combustion Line | Q3: Notes:
Q4: User to add logic to complete Whole installation, Table A5:G18. From the data in Per Combustion Line, Table J6:O79, subject to No. of lines installed
A5: =+'Cover Page'!C39 -> 2025 | B5: 1/2 Hourly Reference Periods | E5: Daily Reference Periods
A6: mg/Nm3 | B6: 1/2 hourly HCl ELV | C6: Monthly mean of half-hourly averages | D6: Highest half- hourly average | E6: Daily HCl ELV | F6: Monthly mean of daily averages | G6: Highest daily average | J6: =+A5 -> 2025 | K6: mg/Nm3 | L6: Monthly 1/2 hourly mean | M6: Monthly 1/2 hourly maximum | N6: Monthly daily mean | O6: Monthly daily maximum
A7: Jan | B7: 60 | C7: =AVERAGE(L7,L22) -> 9.15 | D7: =MAX(M7,M22) -> 293.5 | E7: 8 | F7: =AVERAGE(N7,N22) -> 9.6 | G7: =MAX(O7,O22) -> 22 | J7: A1 | K7: Jan | L7: 6.6 | M7: 12.8 | N7: 7 | O7: 7.8
A8: Feb | B8: 60 | C8: =AVERAGE(L8,L23) -> 7.55 | D8: =MAX(M8,M23) -> 11.4 | E8: 8 | F8: =AVERAGE(N8,N23) -> 7.15 | G8: =MAX(O8,O23) -> 7.8 | K8: Feb | L8: 7.5 | M8: 11.4 | N8: 6.8 | O8: 7.8
A9: Mar | B9: 60 | C9: 7.1 | D9: 24.6 | E9: 8 | F9: 7.1 | G9: 7.8 | K9: Mar | L9: 6.7 | M9: 15 | N9: 6.7 | O9: 7.8 | Q9: Whole Installation table A5:G18:
A10: Apr | B10: 60 | C10: 7.75 | D10: 40.1 | E10: 8 | F10: 7.65 | G10: 7.8 | K10: Apr | L10: 7.7 | M10: 40.1 | N10: 7.7 | O10: 7.8 | Q10: Mean: for 1/2 hourly and daily periods calculate mean of values across all operational combustion lines for the month
A11: May | B11: 60 | C11: 4.1 | D11: 343.4 | E11: 8 | F11: 4 | G11: 21.2 | K11: May | L11: 0 | M11: 0 | N11: 0 | O11: 0
A12: Jun | B12: 60 | C12: 3.35 | D12: 21.6 | E12: 8 | F12: 3.35 | G12: 7.8 | K12: Jun | L12: 0 | M12: 0 | N12: 0 | O12: 0
A13: Jul | B13: 60 | C13: 7.7 | D13: 11.7 | E13: 8 | F13: 7.65 | G13: 7.8 | K13: Jul | L13: 7.6 | M13: 11.7 | N13: 7.6 | O13: 7.8 | Q13: Maximum: for 1/2 hourly and daily periods use the highest value across all operational combustion lines for the month
A14: Aug | B14: 60 | C14: 7.8 | D14: 30.4 | E14: 8 | F14: 7.7 | G14: 8.2 | K14: Aug | L14: 7.8 | M14: 30.4 | N14: 7.7 | O14: 8.2
A15: Sep | B15: 60 | C15: 7.65 | D15: 11.8 | E15: 8 | F15: 7.6 | G15: 7.8 | K15: Sep | L15: 7.7 | M15: 11.6 | N15: 7.6 | O15: 7.8
A16: Oct | B16: 60 | C16: 7.55 | D16: 23.5 | E16: 8 | F16: 7.5 | G16: 7.8 | K16: Oct | L16: 7.6 | M16: 12 | N16: 7.5 | O16: 7.8
A17: Nov | B17: 60 | C17: 7.2 | D17: 19.1 | E17: 8 | F17: 7.2 | G17: 7.8 | K17: Nov | L17: 7.2 | M17: 19.1 | N17: 7.2 | O17: 7.8
A18: Dec | B18: 60 | C18: 7.35 | D18: 14.2 | E18: 8 | F18: 7.35 | G18: 7.8 | K18: Dec | L18: 7.3 | M18: 11.6 | N18: 7.3 | O18: 7.8
K19: Annual | L19: =AVERAGE(L7:L18) -> 6.141666667 | M19: =MAX(M7:M18) -> 40.1 | N19: =AVERAGE(N7:N18) -> 6.091666667 | O19: =MAX(O7:O18) -> 8.2
J21: =+A5 -> 2025 | K21: mg/Nm3 | L21: Monthly 1/2 hourly mean | M21: Monthly 1/2 hourly maximum | N21: Monthly daily mean | O21: Monthly daily maximum
J22: A2 | K22: Jan | L22: 11.7 | M22: 293.5 | N22: 12.2 | O22: 22
K23: Feb | L23: 7.6 | M23: 11.2 | N23: 7.5 | O23: 7.8
K24: Mar | L24: 7.5 | M24: 24.6 | N24: 7.5 | O24: 7.8
K25: Apr | L25: 7.8 | M25: 11.3 | N25: 7.6 | O25: 7.8
K26: May | L26: 8.2 | M26: 343.4 | N26: 8 | O26: 21.2
K27: Jun | L27: 6.7 | M27: 21.6 | N27: 6.7 | O27: 7.8
K28: Jul | L28: 7.8 | M28: 10 | N28: 7.7 | O28: 7.8
K29: Aug | L29: 7.8 | M29: 15.9 | N29: 7.7 | O29: 7.8
K30: Sep | L30: 7.6 | M30: 11.8 | N30: 7.6 | O30: 7.8
K31: Oct | L31: 7.5 | M31: 23.5 | N31: 7.5 | O31: 7.8
K32: Nov | L32: 7.2 | M32: 16 | N32: 7.2 | O32: 7.8
K33: Dec | L33: 7.4 | M33: 14.2 | N33: 7.4 | O33: 7.8
K34: Annual | L34: =AVERAGE(L22:L33) -> 7.9 | M34: =MAX(M22:M33) -> 343.4 | N34: =AVERAGE(N22:N33) -> 7.883333333 | O34: =MAX(O22:O33) -> 22
J36: =+A5 -> 2025 | K36: mg/Nm3 | L36: Monthly 1/2 hourly mean | M36: Monthly 1/2 hourly maximum | N36: Monthly daily mean | O36: Monthly daily maximum
J37: A3 | K37: Jan
K38: Feb
K39: Mar
K40: Apr
K41: May
K42: Jun
K43: Jul
K44: Aug
K45: Sep
K46: Oct
K47: Nov
A48: Comments : | K48: Dec
K49: Annual | L49: =AVERAGE(L37:L48) ->  | M49: =MAX(M37:M48) -> 0 | N49: =AVERAGE(N37:N48) ->  | O49: =MAX(O37:O48) -> 0
J51: =+A5 -> 2025 | K51: mg/Nm3 | L51: Monthly 1/2 hourly mean | M51: Monthly 1/2 hourly maximum | N51: Monthly daily mean | O51: Monthly daily maximum
J52: A4 | K52: Jan
K53: Feb
K54: Mar
K55: Apr
K56: May
K57: Jun
K58: Jul
K59: Aug
K60: Sep
K61: Oct
K62: Nov
K63: Dec
K64: Annual | L64: =AVERAGE(L52:L63) ->  | M64: =MAX(M52:M63) -> 0 | N64: =AVERAGE(N52:N63) ->  | O64: =MAX(O52:O63) -> 0
J66: =+A5 -> 2025 | K66: mg/Nm3 | L66: Monthly 1/2 hourly mean | M66: Monthly 1/2 hourly maximum | N66: Monthly daily mean | O66: Monthly daily maximum
J67: A5 | K67: Jan
K68: Feb
K69: Mar
K70: Apr
K71: May
K72: Jun
K73: Jul
K74: Aug
K75: Sep
K76: Oct
K77: Nov
K78: Dec
K79: Annual | L79: =AVERAGE(L67:L78) ->  | M79: =MAX(M67:M78) -> 0 | N79: =AVERAGE(N67:N78) ->  | O79: =MAX(O67:O78) -> 0

Sheet SO2
A1: =+'Cover Page'!$B$29 -> Annual Performance Report 2025 | E1: =+'Cover Page'!$B$33 -> Enviropower Ltd
A3: Monitoring of Sulphur dioxide emissions | D3: Whole Installation | G3: See Notes in Cell Q3 | J3: =+A3 -> Monitoring of Sulphur dioxide emissions | N3: Per Combustion Line | Q3: Notes:
Q4: User to add logic to complete Whole installation, Table A5:G18. From the data in Per Combustion Line, Table J6:O79, subject to No. of lines installed
A5: =+'Cover Page'!C39 -> 2025 | B5: 1/2 Hourly Reference Periods | E5: Daily Reference Periods
A6: mg/Nm3 | B6: 1/2 hourly SO2 ELV | C6: Monthly mean of half-hourly averages | D6: Highest half- hourly average | E6: Daily SO2 ELV | F6: Monthly mean of daily averages | G6: Highest daily average | J6: =+A5 -> 2025 | K6: mg/Nm3 | L6: Monthly 1/2 hourly mean | M6: Monthly 1/2 hourly maximum | N6: Monthly daily mean | O6: Monthly daily maximum
A7: Jan | B7: 200 | C7: =AVERAGE(L7,L22) -> 34.85 | D7: =MAX(M7,M22) -> 732.7 | E7: 40 | F7: =AVERAGE(N7,N22) -> 34.25 | G7: =MAX(O7,O22) -> 50 | J7: A1 | K7: Jan | L7: 34.8 | M7: 78.8 | N7: 34.2 | O7: 39.4
A8: Feb | B8: 200 | C8: =AVERAGE(L8,L23) -> 33.35 | D8: =MAX(M8,M23) -> 90.2 | E8: 40 | F8: =AVERAGE(N8,N23) -> 33.8 | G8: =MAX(O8,O23) -> 38.1 | K8: Feb | L8: 35.9 | M8: 54.1 | N8: 37.1 | O8: 38.1
A9: Mar | B9: 200 | C9: 32.2 | D9: 122.8 | E9: 40 | F9: 32.15 | G9: 39.3 | K9: Mar | L9: 35.2 | M9: 122.8 | N9: 34.9 | O9: 39.3 | Q9: Whole Installation table A5:G18:
A10: Apr | B10: 200 | C10: 28.15 | D10: 143.6 | E10: 40 | F10: 28.1 | G10: 38.6 | K10: Apr | L10: 25.8 | M10: 143.6 | N10: 25.9 | O10: 34.4 | Q10: Mean: for 1/2 hourly and daily periods calculate mean of values across all operational combustion lines for the month
A11: May | B11: 200 | C11: 16.45 | D11: 791.1 | E11: 40 | F11: 15.6 | G11: 56.2 | K11: May | L11: 0 | M11: 0 | N11: 0 | O11: 0
A12: Jun | B12: 200 | C12: 14.85 | D12: 123.3 | E12: 40 | F12: 14.8 | G12: 39.5 | K12: Jun | L12: 0 | M12: 0 | N12: 0 | O12: 0
A13: Jul | B13: 200 | C13: 28.45 | D13: 340.7 | E13: 40 | F13: 27.95 | G13: 35.9 | K13: Jul | L13: 27.4 | M13: 340.7 | N13: 26.8 | O13: 35.9 | Q13: Maximum: for 1/2 hourly and daily periods use the highest value across all operational combustion lines for the month
A14: Aug | B14: 200 | C14: 25.25 | D14: 109.4 | E14: 40 | F14: 25.2 | G14: 38.8 | K14: Aug | L14: 25.5 | M14: 109.4 | N14: 25.5 | O14: 38.7
A15: Sep | B15: 200 | C15: 29.65 | D15: 99.2 | E15: 40 | F15: 30.05 | G15: 39.2 | K15: Sep | L15: 30.8 | M15: 99.2 | N15: 31.1 | O15: 39.2
A16: Oct | B16: 200 | C16: 33.3 | D16: 132.2 | E16: 40 | F16: 33.3 | G16: 39.4 | K16: Oct | L16: 32.3 | M16: 82.4 | N16: 32.3 | O16: 39.4
A17: Nov | B17: 200 | C17: 35.3 | D17: 114.3 | E17: 40 | F17: 35.2 | G17: 39.4 | K17: Nov | L17: 36.2 | M17: 109.2 | N17: 36.1 | O17: 39.4
A18: Dec | B18: 200 | C18: 37.35 | D18: 89.6 | E18: 40 | F18: 37.35 | G18: 39.4 | K18: Dec | L18: 38 | M18: 81.3 | N18: 38 | O18: 39.4
K19: Annual | L19: =AVERAGE(L7:L18) -> 26.825 | M19: =MAX(M7:M18) -> 340.7 | N19: =AVERAGE(N7:N18) -> 26.825 | O19: =MAX(O7:O18) -> 39.4
J21: =+A5 -> 2025 | K21: mg/Nm3 | L21: Monthly 1/2 hourly mean | M21: Monthly 1/2 hourly maximum | N21: Monthly daily mean | O21: Monthly daily maximum
J22: A2 | K22: Jan | L22: 34.9 | M22: 732.7 | N22: 34.3 | O22: 50
K23: Feb | L23: 30.8 | M23: 90.2 | N23: 30.5 | O23: 36.3
K24: Mar | L24: 29.2 | M24: 114.3 | N24: 29.4 | O24: 38.2
K25: Apr | L25: 30.5 | M25: 71.3 | N25: 30.3 | O25: 38.6
K26: May | L26: 32.9 | M26: 791.1 | N26: 31.2 | O26: 56.2
K27: Jun | L27: 29.7 | M27: 123.3 | N27: 29.6 | O27: 39.5
K28: Jul | L28: 29.5 | M28: 56.3 | N28: 29.1 | O28: 34
K29: Aug | L29: 25 | M29: 92.6 | N29: 24.9 | O29: 38.8
K30: Sep | L30: 28.5 | M30: 68.7 | N30: 29 | O30: 39.2
K31: Oct | L31: 34.3 | M31: 132.2 | N31: 34.3 | O31: 39.3
K32: Nov | L32: 34.4 | M32: 114.3 | N32: 34.3 | O32: 39.4
K33: Dec | L33: 36.7 | M33: 89.6 | N33: 36.7 | O33: 39.4
K34: Annual | L34: =AVERAGE(L22:L33) -> 31.36666667 | M34: =MAX(M22:M33) -> 791.1 | N34: =AVERAGE(N22:N33) -> 31.13333333 | O34: =MAX(O22:O33) -> 56.2
J36: =+A5 -> 2025 | K36: mg/Nm3 | L36: Monthly 1/2 hourly mean | M36: Monthly 1/2 hourly maximum | N36: Monthly daily mean | O36: Monthly daily maximum
J37: A3 | K37: Jan
K38: Feb
K39: Mar
K40: Apr
K41: May
K42: Jun
K43: Jul
K44: Aug
K45: Sep
K46: Oct
K47: Nov
A48: Comments : | K48: Dec
K49: Annual | L49: =AVERAGE(L37:L48) ->  | M49: =MAX(M37:M48) -> 0 | N49: =AVERAGE(N37:N48) ->  | O49: =MAX(O37:O48) -> 0
J51: =+A5 -> 2025 | K51: mg/Nm3 | L51: Monthly 1/2 hourly mean | M51: Monthly 1/2 hourly maximum | N51: Monthly daily mean | O51: Monthly daily maximum
J52: A4 | K52: Jan
K53: Feb
K54: Mar
K55: Apr
K56: May
K57: Jun
K58: Jul
K59: Aug
K60: Sep
K61: Oct
K62: Nov
K63: Dec
K64: Annual | L64: =AVERAGE(L52:L63) ->  | M64: =MAX(M52:M63) -> 0 | N64: =AVERAGE(N52:N63) ->  | O64: =MAX(O52:O63) -> 0
J66: =+A5 -> 2025 | K66: mg/Nm3 | L66: Monthly 1/2 hourly mean | M66: Monthly 1/2 hourly maximum | N66: Monthly daily mean | O66: Monthly daily maximum
J67: A5 | K67: Jan
K68: Feb
K69: Mar
K70: Apr
K71: May
K72: Jun
K73: Jul
K74: Aug
K75: Sep
K76: Oct
K77: Nov
K78: Dec
K79: Annual | L79: =AVERAGE(L67:L78) ->  | M79: =MAX(M67:M78) -> 0 | N79: =AVERAGE(N67:N78) ->  | O79: =MAX(O67:O78) -> 0

Sheet NOx
A1: =+'Cover Page'!$B$29 -> Annual Performance Report 2025 | E1: =+'Cover Page'!$B$33 -> Enviropower Ltd
A3: Monitoring of Oxides of Nitrogen emissions | D3: Whole Installation | G3: See Notes in Cell Q3 | J3: =+A3 -> Monitoring of Oxides of Nitrogen emissions | N3: Per Combustion Line | Q3: Notes:
Q4: User to add logic to complete Whole installation, Table A5:G18. From the data in Per Combustion Line, Table J6:O79, subject to No. of lines installed
A5: =+'Cover Page'!C39 -> 2025 | B5: 1/2 Hourly Reference Periods | E5: Daily Reference Periods
A6: mg/Nm3 | B6: 1/2 hourly NOx ELV | C6: Monthly mean of half-hourly averages | D6: Highest half- hourly average | E6: Daily NOx ELV | F6: Monthly mean of daily averages | G6: Highest daily average | J6: =+A5 -> 2025 | K6: mg/Nm3 | L6: Monthly 1/2 hourly mean | M6: Monthly 1/2 hourly maximum | N6: Monthly daily mean | O6: Monthly daily maximum
A7: Jan | B7: 300 | C7: =AVERAGE(L7,L22) -> 136.6 | D7: =MAX(M7,M22) -> 177.7 | E7: 150 | F7: =AVERAGE(N7,N22) -> 133.9 | G7: =MAX(O7,O22) -> 148 | J7: A1 | K7: Jan | L7: 133.9 | M7: 177.7 | N7: 130.2 | O7: 148
A8: Feb | B8: 300 | C8: =AVERAGE(L8,L23) -> 146.5 | D8: =MAX(M8,M23) -> 161.9 | E8: 150 | F8: =AVERAGE(N8,N23) -> 147.25 | G8: =MAX(O8,O23) -> 147.9 | K8: Feb | L8: 146.4 | M8: 161.9 | N8: 146.9 | O8: 147.9
A9: Mar | B9: 300 | C9: 147.75 | D9: 181.7 | E9: 150 | F9: 147.75 | G9: 148 | K9: Mar | L9: 147.8 | M9: 181.7 | N9: 147.8 | O9: 147.9 | Q9: Whole Installation table A5:G18:
A10: Apr | B10: 300 | C10: 145.1 | D10: 206 | E10: 150 | F10: 144.95 | G10: 148.7 | K10: Apr | L10: 144.9 | M10: 206 | N10: 144.9 | O10: 148.7 | Q10: Mean: for 1/2 hourly and daily periods calculate mean of values across all operational combustion lines for the month
A11: May | B11: 300 | C11: 74.55 | D11: 244.5 | E11: 150 | F11: 73.9 | G11: 148 | K11: May | L11: 0 | M11: 0 | N11: 0 | O11: 0
A12: Jun | B12: 300 | C12: 73.7 | D12: 205 | E12: 150 | F12: 73.7 | G12: 148.1 | K12: Jun | L12: 0 | M12: 0 | N12: 0 | O12: 0
A13: Jul | B13: 300 | C13: 147.25 | D13: 186 | E13: 150 | F13: 147.5 | G13: 148.2 | K13: Jul | L13: 146.8 | M13: 186 | N13: 147.2 | O13: 148.2 | Q13: Maximum: for 1/2 hourly and daily periods use the highest value across all operational combustion lines for the month
A14: Aug | B14: 300 | C14: 147.6 | D14: 188.5 | E14: 150 | F14: 147.6 | G14: 148.2 | K14: Aug | L14: 147.4 | M14: 188.5 | N14: 147.4 | O14: 148
A15: Sep | B15: 300 | C15: 146.5 | D15: 208.7 | E15: 150 | F15: 146.6 | G15: 148 | K15: Sep | L15: 146.7 | M15: 197.6 | N15: 146.7 | O15: 148
A16: Oct | B16: 300 | C16: 147.8 | D16: 210.3 | E16: 150 | F16: 147.75 | G16: 148 | K16: Oct | L16: 147.7 | M16: 210.3 | N16: 147.6 | O16: 148
A17: Nov | B17: 300 | C17: 147.3 | D17: 194.1 | E17: 150 | F17: 147.25 | G17: 148.2 | K17: Nov | L17: 146.7 | M17: 194.1 | N17: 146.7 | O17: 147.9
A18: Dec | B18: 300 | C18: 144.7 | D18: 223.7 | E18: 150 | F18: 144.7 | G18: 148 | K18: Dec | L18: 141.6 | M18: 223.7 | N18: 141.6 | O18: 148
K19: Annual | L19: =AVERAGE(L7:L18) -> 120.825 | M19: =MAX(M7:M18) -> 223.7 | N19: =AVERAGE(N7:N18) -> 120.5833333 | O19: =MAX(O7:O18) -> 148.7
J21: =+A5 -> 2025 | K21: mg/Nm3 | L21: Monthly 1/2 hourly mean | M21: Monthly 1/2 hourly maximum | N21: Monthly daily mean | O21: Monthly daily maximum
J22: A2 | K22: Jan | L22: 139.3 | M22: 176 | N22: 137.6 | O22: 147.8
K23: Feb | L23: 146.6 | M23: 147.4 | N23: 147.6 | O23: 147.9
K24: Mar | L24: 147.7 | M24: 177.6 | N24: 147.7 | O24: 148
K25: Apr | L25: 145.3 | M25: 182 | N25: 145 | O25: 148
K26: May | L26: 149.1 | M26: 244.5 | N26: 147.8 | O26: 148
K27: Jun | L27: 147.4 | M27: 205 | N27: 147.4 | O27: 148.1
K28: Jul | L28: 147.7 | M28: 169.9 | N28: 147.8 | O28: 147.9
K29: Aug | L29: 147.8 | M29: 186 | N29: 147.8 | O29: 148.2
K30: Sep | L30: 146.3 | M30: 208.7 | N30: 146.5 | O30: 148
K31: Oct | L31: 147.9 | M31: 167.6 | N31: 147.9 | O31: 148
K32: Nov | L32: 147.9 | M32: 177.3 | N32: 147.8 | O32: 148.2
K33: Dec | L33: 147.8 | M33: 175.6 | N33: 147.8 | O33: 148
K34: Annual | L34: =AVERAGE(L22:L33) -> 146.7333333 | M34: =MAX(M22:M33) -> 244.5 | N34: =AVERAGE(N22:N33) -> 146.5583333 | O34: =MAX(O22:O33) -> 148.2
J36: =+A5 -> 2025 | K36: mg/Nm3 | L36: Monthly 1/2 hourly mean | M36: Monthly 1/2 hourly maximum | N36: Monthly daily mean | O36: Monthly daily maximum
J37: A3 | K37: Jan
K38: Feb
K39: Mar
K40: Apr
K41: May
K42: Jun
K43: Jul
K44: Aug
K45: Sep
K46: Oct
K47: Nov
A48: Comments : | K48: Dec
K49: Annual | L49: =AVERAGE(L37:L48) ->  | M49: =MAX(M37:M48) -> 0 | N49: =AVERAGE(N37:N48) ->  | O49: =MAX(O37:O48) -> 0
J51: =+A5 -> 2025 | K51: mg/Nm3 | L51: Monthly 1/2 hourly mean | M51: Monthly 1/2 hourly maximum | N51: Monthly daily mean | O51: Monthly daily maximum
J52: A4 | K52: Jan
K53: Feb
K54: Mar
K55: Apr
K56: May
K57: Jun
K58: Jul
K59: Aug
K60: Sep
K61: Oct
K62: Nov
K63: Dec
K64: Annual | L64: =AVERAGE(L52:L63) ->  | M64: =MAX(M52:M63) -> 0 | N64: =AVERAGE(N52:N63) ->  | O64: =MAX(O52:O63) -> 0
J66: =+A5 -> 2025 | K66: mg/Nm3 | L66: Monthly 1/2 hourly mean | M66: Monthly 1/2 hourly maximum | N66: Monthly daily mean | O66: Monthly daily maximum
J67: A5 | K67: Jan
K68: Feb
K69: Mar
K70: Apr
K71: May
K72: Jun
K73: Jul
K74: Aug
K75: Sep
K76: Oct
K77: Nov
K78: Dec
K79: Annual | L79: =AVERAGE(L67:L78) ->  | M79: =MAX(M67:M78) -> 0 | N79: =AVERAGE(N67:N78) ->  | O79: =MAX(O67:O78) -> 0

Sheet TOC
A1: =+'Cover Page'!$B$29 -> Annual Performance Report 2025 | E1: =+'Cover Page'!$B$33 -> Enviropower Ltd
A3: Monitoring of Total organic carbon emissions | D3: Whole Installation | G3: See Notes in Cell Q3 | J3: =+A3 -> Monitoring of Total organic carbon emissions | N3: Per Combustion Line | Q3: Notes:
Q4: User to add logic to complete Whole installation, Table A5:G18. From the data in Per Combustion Line, Table J6:O79, subject to No. of lines installed
A5: =+'Cover Page'!C39 -> 2025 | B5: 1/2 Hourly Reference Periods | E5: Daily Reference Periods
A6: mg/Nm3 | B6: 1/2 hourly TOC ELV | C6: Monthly mean of half-hourly averages | D6: Highest half- hourly average | E6: Daily TOC ELV | F6: Monthly mean of daily averages | G6: Highest daily average | J6: =+A5 -> 2025 | K6: mg/Nm3 | L6: Monthly 1/2 hourly mean | M6: Monthly 1/2 hourly maximum | N6: Monthly daily mean | O6: Monthly daily maximum
A7: Jan | B7: 20 | C7: =AVERAGE(L7,L22) -> 2.95 | D7: =MAX(M7,M22) -> 6 | E7: 10 | F7: =AVERAGE(N7,N22) -> 2.9 | G7: =MAX(O7,O22) -> 3.8 | J7: A1 | K7: Jan | L7: 2.7 | M7: 6 | N7: 2.8 | O7: 3.5
A8: Feb | B8: 20 | C8: =AVERAGE(L8,L23) -> 1.55 | D8: =MAX(M8,M23) -> 4.7 | E8: 10 | F8: =AVERAGE(N8,N23) -> 0.4 | G8: =MAX(O8,O23) -> 2 | K8: Feb | L8: 1.4 | M8: 2.2 | N8: 0.4 | O8: 1.4
A9: Mar | B9: 20 | C9: 1.2 | D9: 5 | E9: 10 | F9: 1.2 | G9: 2.9 | K9: Mar | L9: 0.9 | M9: 3.8 | N9: 0.9 | O9: 2 | Q9: Whole Installation table A5:G18:
A10: Apr | B10: 20 | C10: 2.1 | D10: 13.3 | E10: 10 | F10: 1.95 | G10: 3.1 | K10: Apr | L10: 2.1 | M10: 13.3 | N10: 2 | O10: 3.1 | Q10: Mean: for 1/2 hourly and daily periods calculate mean of values across all operational combustion lines for the month
A11: May | B11: 20 | C11: 0.7 | D11: 3.6 | E11: 10 | F11: 0.7 | G11: 2.1 | K11: May | L11: 0 | M11: 0 | N11: 0 | O11: 0
A12: Jun | B12: 20 | C12: 0.8 | D12: 4.1 | E12: 10 | F12: 0.8 | G12: 2.3 | K12: Jun | L12: 0 | M12: 0 | N12: 0 | O12: 0
A13: Jul | B13: 20 | C13: 1.35 | D13: 3.2 | E13: 10 | F13: 1.25 | G13: 2 | K13: Jul | L13: 1 | M13: 3 | N13: 0.9 | O13: 1.8 | Q13: Maximum: for 1/2 hourly and daily periods use the highest value across all operational combustion lines for the month
A14: Aug | B14: 20 | C14: 0.9 | D14: 5 | E14: 10 | F14: 0.8 | G14: 1.5 | K14: Aug | L14: 0.8 | M14: 3.3 | N14: 0.7 | O14: 1.4
A15: Sep | B15: 20 | C15: 1.1 | D15: 4.5 | E15: 10 | F15: 1 | G15: 2.9 | K15: Sep | L15: 0.8 | M15: 4.5 | N15: 0.7 | O15: 1.3
A16: Oct | B16: 20 | C16: 0.65 | D16: 3.3 | E16: 10 | F16: 0.6 | G16: 1.4 | K16: Oct | L16: 0.4 | M16: 3.3 | N16: 0.4 | O16: 0.9
A17: Nov | B17: 20 | C17: 0.8 | D17: 3.6 | E17: 10 | F17: 0.75 | G17: 1.9 | K17: Nov | L17: 0.5 | M17: 3.6 | N17: 0.5 | O17: 1.5
A18: Dec | B18: 20 | C18: 0.85 | D18: 3.4 | E18: 10 | F18: 0.85 | G18: 1.8 | K18: Dec | L18: 0.6 | M18: 3.4 | N18: 0.6 | O18: 1.5
K19: Annual | L19: =AVERAGE(L7:L18) -> 0.9333333333 | M19: =MAX(M7:M18) -> 13.3 | N19: =AVERAGE(N7:N18) -> 0.825 | O19: =MAX(O7:O18) -> 3.5
J21: =+A5 -> 2025 | K21: mg/Nm3 | L21: Monthly 1/2 hourly mean | M21: Monthly 1/2 hourly maximum | N21: Monthly daily mean | O21: Monthly daily maximum
J22: A2 | K22: Jan | L22: 3.2 | M22: 5.1 | N22: 3 | O22: 3.8
K23: Feb | L23: 1.7 | M23: 4.7 | N23: 1..5 | O23: 2
K24: Mar | L24: 1.5 | M24: 5 | N24: 1.5 | O24: 2.9
K25: Apr | L25: 2.1 | M25: 4 | N25: 1.9 | O25: 2.6
K26: May | L26: 1.4 | M26: 3.6 | N26: 1.4 | O26: 2.1
K27: Jun | L27: 1.6 | M27: 4.1 | N27: 1.6 | O27: 2.3
K28: Jul | L28: 1.7 | M28: 3.2 | N28: 1.6 | O28: 2
K29: Aug | L29: 1 | M29: 5 | N29: 0.9 | O29: 1.5
K30: Sep | L30: 1.4 | M30: 4.5 | N30: 1.3 | O30: 2.9
K31: Oct | L31: 0.9 | M31: 2.4 | N31: 0.8 | O31: 1.4
K32: Nov | L32: 1.1 | M32: 2.9 | N32: 1 | O32: 1.9
K33: Dec | L33: 1.1 | M33: 3 | N33: 1.1 | O33: 1.8
K34: Annual | L34: =AVERAGE(L22:L33) -> 1.558333333 | M34: =MAX(M22:M33) -> 5.1 | N34: =AVERAGE(N22:N33) -> 1.463636364 | O34: =MAX(O22:O33) -> 3.8
J36: =+A5 -> 2025 | K36: mg/Nm3 | L36: Monthly 1/2 hourly mean | M36: Monthly 1/2 hourly maximum | N36: Monthly daily mean | O36: Monthly daily maximum
J37: A3 | K37: Jan
K38: Feb
K39: Mar
K40: Apr
K41: May
K42: Jun
K43: Jul
K44: Aug
K45: Sep
K46: Oct
K47: Nov
A48: Comments : | K48: Dec
K49: Annual | L49: =AVERAGE(L37:L48) ->  | M49: =MAX(M37:M48) -> 0 | N49: =AVERAGE(N37:N48) ->  | O49: =MAX(O37:O48) -> 0
J51: =+A5 -> 2025 | K51: mg/Nm3 | L51: Monthly 1/2 hourly mean | M51: Monthly 1/2 hourly maximum | N51: Monthly daily mean | O51: Monthly daily maximum
J52: A4 | K52: Jan
K53: Feb
K54: Mar
K55: Apr
K56: May
K57: Jun
K58: Jul
K59: Aug
K60: Sep
K61: Oct
K62: Nov
K63: Dec
K64: Annual | L64: =AVERAGE(L52:L63) ->  | M64: =MAX(M52:M63) -> 0 | N64: =AVERAGE(N52:N63) ->  | O64: =MAX(O52:O63) -> 0
J66: =+A5 -> 2025 | K66: mg/Nm3 | L66: Monthly 1/2 hourly mean | M66: Monthly 1/2 hourly maximum | N66: Monthly daily mean | O66: Monthly daily maximum
J67: A5 | K67: Jan
K68: Feb
K69: Mar
K70: Apr
K71: May
K72: Jun
K73: Jul
K74: Aug
K75: Sep
K76: Oct
K77: Nov
K78: Dec
K79: Annual | L79: =AVERAGE(L67:L78) ->  | M79: =MAX(M67:M78) -> 0 | N79: =AVERAGE(N67:N78) ->  | O79: =MAX(O67:O78) -> 0

Sheet Particulates
A1: =+'Cover Page'!$B$29 -> Annual Performance Report 2025 | E1: =+'Cover Page'!$B$33 -> Enviropower Ltd
A3: Monitoring of Particulate matter emissions | D3: Whole Installation | G3: See Notes in Cell Q3 | J3: =+A3 -> Monitoring of Particulate matter emissions | N3: Per Combustion Line | Q3: Notes:
Q4: User to add logic to complete Whole installation, Table A5:G18. From the data in Per Combustion Line, Table J6:O79, subject to No. of lines installed
A5: =+'Cover Page'!C39 -> 2025 | B5: 1/2 Hourly Reference Periods | E5: Daily Reference Periods
A6: mg/Nm3 | B6: 1/2 hourly PM ELV | C6: Monthly mean of half-hourly averages | D6: Highest half- hourly average | E6: Daily PM ELV | F6: Monthly mean of daily averages | G6: Highest daily average | J6: =+A5 -> 2025 | K6: mg/Nm3 | L6: Monthly 1/2 hourly mean | M6: Monthly 1/2 hourly maximum | N6: Monthly daily mean | O6: Monthly daily maximum
A7: Jan | B7: 30 | C7: =AVERAGE(L7,L22) -> 0.3 | D7: =MAX(M7,M22) -> 3.2 | E7: 5 | F7: =AVERAGE(N7,N22) -> 0 | G7: =MAX(O7,O22) -> 0.6 | J7: A1 | K7: Jan | L7: 0.2 | M7: 2.9 | N7: 0 | O7: 0.1
A8: Feb | B8: 30 | C8: =AVERAGE(L8,L23) -> 0 | D8: =MAX(M8,M23) -> 0.4 | E8: 5 | F8: =AVERAGE(N8,N23) -> 0 | G8: =MAX(O8,O23) -> 0.1 | K8: Feb | L8: 0 | M8: 0.4 | N8: 0 | O8: 0.1
A9: Mar | B9: 30 | C9: 0.05 | D9: 0.5 | E9: 5 | F9: 0 | G9: 0.3 | K9: Mar | L9: 0.1 | M9: 0.5 | N9: 0 | O9: 0.3 | Q9: Whole Installation table A5:G18:
A10: Apr | B10: 30 | C10: 0 | D10: 0.3 | E10: 5 | F10: 0 | G10: 0.1 | K10: Apr | L10: 0 | M10: 0.3 | N10: 0 | O10: 0.1 | Q10: Mean: for 1/2 hourly and daily periods calculate mean of values across all operational combustion lines for the month
A11: May | B11: 30 | C11: 0.05 | D11: 3 | E11: 5 | F11: 0 | G11: 1 | K11: May | L11: 0 | M11: 0 | N11: 0 | O11: 0
A12: Jun | B12: 30 | C12: 0.15 | D12: 4.7 | E12: 5 | F12: 0.15 | G12: 3 | K12: Jun | L12: 0 | M12: 0 | N12: 0 | O12: 0
A13: Jul | B13: 30 | C13: 0.15 | D13: 3.7 | E13: 5 | F13: 0.05 | G13: 0.9 | K13: Jul | L13: 0.2 | M13: 3.7 | N13: 0.1 | O13: 0.9 | Q13: Maximum: for 1/2 hourly and daily periods use the highest value across all operational combustion lines for the month
A14: Aug | B14: 30 | C14: 0.05 | D14: 0.7 | E14: 5 | F14: 0 | G14: 0.4 | K14: Aug | L14: 0.1 | M14: 0.7 | N14: 0 | O14: 0.4
A15: Sep | B15: 30 | C15: 0.05 | D15: 0.8 | E15: 5 | F15: 0.05 | G15: 0.6 | K15: Sep | L15: 0.1 | M15: 0.8 | N15: 0.1 | O15: 0.6
A16: Oct | B16: 30 | C16: 0.05 | D16: 0.5 | E16: 5 | F16: 0 | G16: 0.3 | K16: Oct | L16: 0.1 | M16: 0.5 | N16: 0 | O16: 0.3
A17: Nov | B17: 30 | C17: 0.05 | D17: 0.6 | E17: 5 | F17: 0.05 | G17: 0.4 | K17: Nov | L17: 0.1 | M17: 0.6 | N17: 0.1 | O17: 0.4
A18: Dec | B18: 30 | C18: 0.1 | D18: 0.5 | E18: 5 | F18: 0.1 | G18: 0.3 | K18: Dec | L18: 0.2 | M18: 0.5 | N18: 0.2 | O18: 0.3
K19: Annual | L19: =AVERAGE(L7:L18) -> 0.09166666667 | M19: =MAX(M7:M18) -> 3.7 | N19: =AVERAGE(N7:N18) -> 0.04166666667 | O19: =MAX(O7:O18) -> 0.9
J21: =+A5 -> 2025 | K21: mg/Nm3 | L21: Monthly 1/2 hourly mean | M21: Monthly 1/2 hourly maximum | N21: Monthly daily mean | O21: Monthly daily maximum
J22: A2 | K22: Jan | L22: 0.4 | M22: 3.2 | N22: 0 | O22: 0.6
K23: Feb | L23: 0 | M23: 0.1 | N23: 0 | O23: 0
K24: Mar | L24: 0 | M24: 0.2 | N24: 0 | O24: 0.1
K25: Apr | L25: 0 | M25: 0.3 | N25: 0 | O25: 0
K26: May | L26: 0.1 | M26: 3 | N26: 0 | O26: 1
K27: Jun | L27: 0.3 | M27: 4.7 | N27: 0.3 | O27: 3
K28: Jul | L28: 0.1 | M28: 0.3 | N28: 0 | O28: 0.1
K29: Aug | L29: 0 | M29: 0.2 | N29: 0 | O29: 0.1
K30: Sep | L30: 0 | M30: 0.4 | N30: 0 | O30: 0.1
K31: Oct | L31: 0 | M31: 0.3 | N31: 0 | O31: 0.1
K32: Nov | L32: 0 | M32: 0.3 | N32: 0 | O32: 0.1
K33: Dec | L33: 0 | M33: 0.2 | N33: 0 | O33: 0
K34: Annual | L34: =AVERAGE(L22:L33) -> 0.075 | M34: =MAX(M22:M33) -> 4.7 | N34: =AVERAGE(N22:N33) -> 0.025 | O34: =MAX(O22:O33) -> 3
J36: =+A5 -> 2025 | K36: mg/Nm3 | L36: Monthly 1/2 hourly mean | M36: Monthly 1/2 hourly maximum | N36: Monthly daily mean | O36: Monthly daily maximum
J37: A3 | K37: Jan
K38: Feb
K39: Mar
K40: Apr
K41: May
K42: Jun
K43: Jul
K44: Aug
K45: Sep
K46: Oct
K47: Nov
A48: Comments : | K48: Dec
K49: Annual | L49: =AVERAGE(L37:L48) ->  | M49: =MAX(M37:M48) -> 0 | N49: =AVERAGE(N37:N48) ->  | O49: =MAX(O37:O48) -> 0
J51: =+A5 -> 2025 | K51: mg/Nm3 | L51: Monthly 1/2 hourly mean | M51: Monthly 1/2 hourly maximum | N51: Monthly daily mean | O51: Monthly daily maximum
J52: A4 | K52: Jan
K53: Feb
K54: Mar
K55: Apr
K56: May
K57: Jun
K58: Jul
K59: Aug
K60: Sep
K61: Oct
K62: Nov
K63: Dec
K64: Annual | L64: =AVERAGE(L52:L63) ->  | M64: =MAX(M52:M63) -> 0 | N64: =AVERAGE(N52:N63) ->  | O64: =MAX(O52:O63) -> 0
J66: =+A5 -> 2025 | K66: mg/Nm3 | L66: Monthly 1/2 hourly mean | M66: Monthly 1/2 hourly maximum | N66: Monthly daily mean | O66: Monthly daily maximum
J67: A5 | K67: Jan
K68: Feb
K69: Mar
K70: Apr
K71: May
K72: Jun
K73: Jul
K74: Aug
K75: Sep
K76: Oct
K77: Nov
K78: Dec
K79: Annual | L79: =AVERAGE(L67:L78) ->  | M79: =MAX(M67:M78) -> 0 | N79: =AVERAGE(N67:N78) ->  | O79: =MAX(O67:O78) -> 0

Sheet CO 0.5 hourly
A1: =+'Cover Page'!$B$29 -> Annual Performance Report 2025 | E1: =+'Cover Page'!$B$33 -> Enviropower Ltd
A3: Monitoring of Carbon Monoxide (half hourly) | D3: Whole Installation | G3: See Notes in Cell Q3 | J3: =+A3 -> Monitoring of Carbon Monoxide (half hourly) | N3: Per Combustion Line | Q3: Notes:
A5: If your plant has no short-term (half-hourly or 10-minute) CO ELVs, please complete this tab (stating "none" in the 1/2 hourly CO column) and ignore the CO 95% 10 min tab; otherwise, complete the relevant CO tab for your plant
Q7: User to add logic to complete Whole installation, Table A5:G18. From the data in Per Combustion Line, Table J6:O79, subject to No. of lines installed
A8: =+'Cover Page'!C39 -> 2025 | B8: 1/2 Hourly Reference Periods | E8: Daily Reference Periods
A9: mg/Nm3 | B9: 1/2 hourly CO ELV | C9: Monthly mean of half-hourly averages | D9: Highest half- hourly average | E9: Daily CO ELV | F9: Monthly mean of daily averages | G9: Highest daily average | J9: =+A8 -> 2025 | K9: mg/Nm3 | L9: Monthly 1/2 hourly mean | M9: Monthly 1/2 hourly maximum | N9: Monthly daily mean | O9: Monthly daily maximum
A10: Jan | B10: ELV or None | E10: 75 | J10: A1 | K10: Jan
A11: Feb | B11: ELV or None | E11: =+E10 -> 75 | K11: Feb
A12: Mar | B12: ELV or None | E12: =+E11 -> 75 | K12: Mar | Q12: Whole Installation table A5:G18:
A13: Apr | B13: ELV or None | E13: 75 | K13: Apr | Q13: Mean: for 1/2 hourly and daily periods calculate mean of values across all operational combustion lines for the month
A14: May | B14: ELV or None | E14: 75 | K14: May
A15: Jun | B15: ELV or None | E15: 75 | K15: Jun
A16: Jul | B16: ELV or None | E16: 75 | K16: Jul | Q16: Maximum: for 1/2 hourly and daily periods use the highest value across all operational combustion lines for the month
A17: Aug | B17: ELV or None | E17: 75 | K17: Aug
A18: Sep | B18: ELV or None | E18: 75 | K18: Sep
A19: Oct | B19: ELV or None | E19: 75 | K19: Oct
A20: Nov | B20: ELV or None | E20: 75 | K20: Nov
A21: Dec | B21: ELV or None | E21: 75 | K21: Dec
K22: Annual | L22: =AVERAGE(L10:L21) ->  | M22: =MAX(M10:M21) -> 0 | N22: =AVERAGE(N10:N21) ->  | O22: =MAX(O10:O21) -> 0
J24: =+A8 -> 2025 | K24: mg/Nm3 | L24: Monthly 1/2 hourly mean | M24: Monthly 1/2 hourly maximum | N24: Monthly daily mean | O24: Monthly daily maximum
J25: A2 | K25: Jan
K26: Feb
K27: Mar
K28: Apr
K29: May
K30: Jun
K31: Jul
K32: Aug
K33: Sep
K34: Oct
K35: Nov
K36: Dec
K37: Annual | L37: =AVERAGE(L25:L36) ->  | M37: =MAX(M25:M36) -> 0 | N37: =AVERAGE(N25:N36) ->  | O37: =MAX(O25:O36) -> 0
J39: =+A8 -> 2025 | K39: mg/Nm3 | L39: Monthly 1/2 hourly mean | M39: Monthly 1/2 hourly maximum | N39: Monthly daily mean | O39: Monthly daily maximum
J40: A3 | K40: Jan
K41: Feb
K42: Mar
K43: Apr
K44: May
K45: Jun
K46: Jul
K47: Aug
K48: Sep
K49: Oct
K50: Nov
A51: Comments : | K51: Dec
K52: Annual | L52: =AVERAGE(L40:L51) ->  | M52: =MAX(M40:M51) -> 0 | N52: =AVERAGE(N40:N51) ->  | O52: =MAX(O40:O51) -> 0
J54: =+A8 -> 2025 | K54: mg/Nm3 | L54: Monthly 1/2 hourly mean | M54: Monthly 1/2 hourly maximum | N54: Monthly daily mean | O54: Monthly daily maximum
J55: A4 | K55: Jan
K56: Feb
K57: Mar
K58: Apr
K59: May
K60: Jun
K61: Jul
K62: Aug
K63: Sep
K64: Oct
K65: Nov
K66: Dec
K67: Annual | L67: =AVERAGE(L55:L66) ->  | M67: =MAX(M55:M66) -> 0 | N67: =AVERAGE(N55:N66) ->  | O67: =MAX(O55:O66) -> 0
J69: =+A9 -> mg/Nm3 | K69: mg/Nm3 | L69: Monthly 1/2 hourly mean | M69: Monthly 1/2 hourly maximum | N69: Monthly daily mean | O69: Monthly daily maximum
J70: A5 | K70: Jan
K71: Feb
K72: Mar
K73: Apr
K74: May
K75: Jun
K76: Jul
K77: Aug
K78: Sep
K79: Oct
K80: Nov
K81: Dec
K82: Annual | L82: =AVERAGE(L70:L81) ->  | M82: =MAX(M70:M81) -> 0 | N82: =AVERAGE(N70:N81) ->  | O82: =MAX(O70:O81) -> 0

Sheet CO 95% 10 min
A1: =+'Cover Page'!$B$29 -> Annual Performance Report 2025 | E1: =+'Cover Page'!$B$33 -> Enviropower Ltd
A3: Monitoring of Carbon Monoxide (10-minute avg) | E3: Whole Installation | H3: See Notes in Cell S3 | J3: =+A3 -> Monitoring of Carbon Monoxide (10-minute avg) | O3: Per Combustion Line | Q3: Notes: | S3: Notes:
A5: If your plant has no short-term (half-hourly or 10-minute) CO ELVs, please ignore this tab and instead complete the CO 0.5 hourly tab; otherwise, please complete the relevant CO tab for your plant
S7: User to add logic to complete Whole installation, Table A5:H18. From the data in Per Combustion Line, Table K6:Q79, subject to No. of lines installed
A8: =+'Cover Page'!C39 -> 2025 | B8: 10-minute Reference Periods | F8: Daily Reference Periods
A9: mg/Nm3 | B9: 95%ile 10-min avg CO ELV | C9: Highest daily 95%ile 10-min average | D9: Monthly mean of 10-min averages | E9: Highest 10-min average | F9: Daily CO ELV | G9: Monthly mean of daily averages | H9: Highest daily average | K9: =+A8 -> 2025 | L9: mg/Nm3 | M9: 95%ile 10-min avg maximum | N9: Monthly CO 10-min avg mean | O9: 10-min avg maximum | P9: Monthly daily mean | Q9: Monthly daily maximum
A10: Jan | B10: 150 | C10: =MAX(M10,M25) -> 6.5 | D10: =AVERAGE(N10,N25) -> 4.2 | E10: =MAX(O10,O25) -> 156.3 | F10: 50 | G10: =AVERAGE(P10,P25) -> 3.9 | H10: =MAX(Q10,Q25) -> 4.8 | K10: A1 | L10: Jan | M10: 6.4 | N10: 4.3 | O10: 156.3 | P10: 4 | Q10: 4.7
A11: Feb | B11: 150 | C11: =MAX(M11,M26) -> 4.7 | D11: =AVERAGE(N11,N26) -> 3.25 | E11: =MAX(O11,O26) -> 122.7 | F11: =+F10 -> 50 | G11: =AVERAGE(P11,P26) -> 2.55 | H11: =MAX(Q11,Q26) -> 3.7 | L11: Feb | M11: 4.6 | N11: 3.6 | O11: 5.2 | P11: 2.5 | Q11: 3.5
A12: Mar | B12: 150 | C12: 8.3 | D12: 3.75 | E12: 9.7 | F12: =+F11 -> 50 | G12: 3.7 | H12: 5.6 | L12: Mar | M12: 8.3 | N12: 4 | O12: 9.7 | P12: 4 | Q12: 5.6 | S12: Whole Installation table A5:H18:
A13: Apr | B13: 150 | C13: 46.2 | D13: 4.45 | E13: 429.3 | F13: 50 | G13: 4.3 | H13: 16.3 | L13: Apr | M13: 46.2 | N13: 5.6 | O13: 429.3 | P13: 5.5 | Q13: 16.3 | S13: Mean: for 10-min and daily periods use average of all operational combustion lines.
A14: May | B14: 150 | C14: 5.7 | D14: 1.7 | E14: 7.5 | F14: 50 | G14: 1.65 | H14: 4.6 | L14: May | M14: 0 | N14: 0 | O14: 0 | P14: 0 | Q14: 0
A15: Jun | B15: 150 | C15: 6.1 | D15: 1.9 | E15: 19.6 | F15: 50 | G15: 1.9 | H15: 4.8 | L15: Jun | M15: 0 | N15: 0 | O15: 0 | P15: 0 | Q15: 0
A16: Jul | B16: 150 | C16: 5.2 | D16: 3.35 | E16: 8.1 | F16: 50 | G16: 3.2 | H16: 4.2 | L16: Jul | M16: 4.3 | N16: 3 | O16: 6.6 | P16: 2.8 | Q16: 3.5 | S16: Maximum: for 10-min and daily periods use the highest of all operational combustion lines in any month.
A17: Aug | B17: 150 | C17: 6.1 | D17: 3.55 | E17: 165.2 | F17: 50 | G17: 3.5 | H17: 4.6 | L17: Aug | M17: 5.5 | N17: 3.5 | O17: 16.4 | P17: 3.4 | Q17: 4.2
A18: Sep | B18: 150 | C18: 6.1 | D18: 3.35 | E18: 26.5 | F18: 50 | G18: 3.25 | H18: 4.3 | L18: Sep | M18: 6.1 | N18: 3.2 | O18: 26.5 | P18: 3.1 | Q18: 4.2
A19: Oct | B19: 150 | C19: 4.6 | D19: 2.4 | E19: 5.2 | F19: 50 | G19: 2.35 | H19: 3.2 | L19: Oct | M19: 4.6 | N19: 2.4 | O19: 5 | P19: 2.3 | Q19: 3.1
A20: Nov | B20: 150 | C20: 4.8 | D20: 2.25 | E20: 5.4 | F20: 50 | G20: 2.15 | H20: 3.4 | L20: Nov | M20: 4.1 | N20: 1.9 | O20: 4.4 | P20: 1.8 | Q20: 2.6
A21: Dec | B21: 150 | C21: 6.3 | D21: 3.15 | E21: 24.1 | F21: 50 | G21: 3.1 | H21: 4.6 | L21: Dec | M21: 5.5 | N21: 2.8 | O21: 24.1 | P21: 2.8 | Q21: 4.2
L22: Annual | M22: =AVERAGE(M10:M21) -> 7.966666667 | N22: =AVERAGE(N10:N21) -> 2.858333333 | O22: =MAX(O10:O21) -> 429.3 | P22: =AVERAGE(P10:P21) -> 2.683333333 | Q22: =MAX(Q10:Q21) -> 16.3
K24: =+A8 -> 2025 | L24: mg/Nm3 | M24: 95%ile 10-min avg maximum | N24: Monthly CO 10-min avg mean | O24: 10-min avg maximum | P24: Monthly daily mean | Q24: Monthly daily maximum
K25: A2 | L25: Jan | M25: 6.5 | N25: 4.1 | O25: 7.2 | P25: 3.8 | Q25: 4.8
L26: Feb | M26: 4.7 | N26: 2.9 | O26: 122.7 | P26: 2.6 | Q26: 3.7
L27: Mar | M27: 6.9 | N27: 3.5 | O27: 9.5 | P27: 3.4 | Q27: 5
L28: Apr | M28: 4.6 | N28: 3.3 | O28: 8.4 | P28: 3.1 | Q28: 3.7
L29: May | M29: 5.7 | N29: 3.4 | O29: 7.5 | P29: 3.3 | Q29: 4.6
L30: Jun | M30: 6.1 | N30: 3.8 | O30: 19.6 | P30: 3.8 | Q30: 4.8
L31: Jul | M31: 5.2 | N31: 3.7 | O31: 8.1 | P31: 3.6 | Q31: 4.2
L32: Aug | M32: 6.1 | N32: 3.6 | O32: 165.2 | P32: 3.6 | Q32: 4.6
L33: Sep | M33: 5.7 | N33: 3.5 | O33: 7.6 | P33: 3.4 | Q33: 4.3
L34: Oct | M34: 4.4 | N34: 2.4 | O34: 5.2 | P34: 2.4 | Q34: 3.2
L35: Nov | M35: 4.8 | N35: 2.6 | O35: 5.4 | P35: 2.5 | Q35: 3.4
L36: Dec | M36: 6.3 | N36: 3.5 | O36: 7 | P36: 3.4 | Q36: 4.6
L37: Annual | M37: =AVERAGE(M25:M36) -> 5.583333333 | N37: =AVERAGE(N25:N36) -> 3.358333333 | O37: =MAX(O25:O36) -> 165.2 | P37: =AVERAGE(P25:P36) -> 3.241666667 | Q37: =MAX(Q25:Q36) -> 5
K39: =+A8 -> 2025 | L39: mg/Nm3 | M39: 95%ile 10-min avg maximum | N39: Monthly CO 10-min avg mean | O39: 10-min avg maximum | P39: Monthly daily mean | Q39: Monthly daily maximum
K40: A3 | L40: Jan
L41: Feb
L42: Mar
L43: Apr
L44: May
L45: Jun
L46: Jul
L47: Aug
L48: Sep
L49: Oct
L50: Nov
A51: Comments : | L51: Dec
A52: Environment Agency explanatory note: The 10-minute average ELV is based on the “95th percentile”. In this case this means that 95% of the 10 minute averages in the relevant 24-hour period (i.e. 137) must be below 150 mg/Nm3, and 5% (i.e. 7) are allowed to be any value above 150 mg/Nm3. Whilst we expect operators to minimise CO emissions at all times, it is perfectly acceptable for the value of the maximum 10-minute average to be above 150 mg/Nm3, provided the 95th percentile ELV has been met for that period. | L52: Annual | M52: =AVERAGE(M40:M51) ->  | O52: =MAX(O40:O51) -> 0 | P52: =AVERAGE(P40:P51) ->  | Q52: =MAX(Q40:Q51) -> 0
K54: =+A8 -> 2025 | L54: mg/Nm3 | M54: 95%ile 10-min avg maximum | N54: Monthly CO 10-min avg mean | O54: 10-min avg maximum | P54: Monthly daily mean | Q54: Monthly daily maximum
K55: A4 | L55: Jan
L56: Feb
L57: Mar
L58: Apr
L59: May
L60: Jun
L61: Jul
L62: Aug
L63: Sep
L64: Oct
L65: Nov
L66: Dec
L67: Annual | M67: =AVERAGE(M55:M66) ->  | O67: =MAX(O55:O66) -> 0 | P67: =AVERAGE(P55:P66) ->  | Q67: =MAX(Q55:Q66) -> 0
K69: =+A8 -> 2025 | L69: mg/Nm3 | M69: 95%ile 10-min avg maximum | N69: Monthly CO 10-min avg mean | O69: 10-min avg maximum | P69: Monthly daily mean | Q69: Monthly daily maximum
K70: A5 | L70: Jan
L71: Feb
L72: Mar
L73: Apr
L74: May
L75: Jun
L76: Jul
L77: Aug
L78: Sep
L79: Oct
L80: Nov
L81: Dec
L82: Annual | M82: =AVERAGE(M70:M81) ->  | O82: =MAX(O70:O81) -> 0 | P82: =AVERAGE(P70:P81) ->  | Q82: =MAX(Q70:Q81) -> 0

Sheet NH3
A1: =+'Cover Page'!$B$29 -> Annual Performance Report 2025 | E1: =+'Cover Page'!$B$33 -> Enviropower Ltd
A3: Monitoring of Ammnonia emissions | D3: Whole Installation | G3: See Notes in Cell Q3 | J3: =+A3 -> Monitoring of Ammnonia emissions | N3: Per Combustion Line | Q3: Notes:
Q4: User to add logic to complete Whole installation, Table A5:G18. From the data in Per Combustion Line, Table J6:O79, subject to No. of lines installed
A5: =+'Cover Page'!C39 -> 2025 | B5: 1/2 Hourly Reference Periods | E5: Daily Reference Periods
A6: mg/Nm3 | B6: 1/2 hourly NH3 ELV | C6: Monthly mean of half-hourly averages | D6: Highest half- hourly average | E6: Daily NH3 ELV | F6: Monthly mean of daily averages | G6: Highest daily average | J6: =+A5 -> 2025 | K6: mg/Nm3 | L6: Monthly 1/2 hourly mean | M6: Monthly 1/2 hourly maximum | N6: Monthly daily mean | O6: Monthly daily maximum
A7: Jan | B7: None | C7: =AVERAGE(L7,L22) -> 0.05 | D7: =MAX(M7,M22) -> 0.7 | E7: 15 | F7: =AVERAGE(N7,N22) -> 0 | G7: =MAX(O7,O22) -> 0.2 | J7: A1 | K7: Jan | L7: 0.1 | M7: 0.7 | N7: 0 | O7: 0.2
A8: Feb | B8: =+B7 -> None | C8: =AVERAGE(L8,L23) -> 0.15 | D8: =MAX(M8,M23) -> 0.8 | E8: 15 | F8: =AVERAGE(N8,N23) -> 0 | G8: =MAX(O8,O23) -> 0.3 | K8: Feb | L8: 0.3 | M8: 0.8 | N8: 0 | O8: 0.3
A9: Mar | B9: =+B8 -> None | C9: 0.1 | D9: 2.5 | E9: 15 | F9: 0.05 | G9: 0.3 | K9: Mar | L9: 0.2 | M9: 2.5 | N9: 0.1 | O9: 0.3 | Q9: Whole Installation table A5:G18:
A10: Apr | B10: None | C10: 0.1 | D10: 5.4 | E10: 15 | F10: 0.05 | G10: 0.2 | K10: Apr | L10: 0.1 | M10: 0.9 | N10: 0.1 | O10: 0.2 | Q10: Mean: for 1/2 hourly and daily periods calculate mean of values across all operational combustion lines for the month
A11: May | B11: None | C11: 0.05 | D11: 1.7 | E11: 15 | F11: 0 | G11: 0.2 | K11: May | L11: 0 | M11: 0 | N11: 0 | O11: 0
A12: Jun | B12: None | C12: 0.05 | D12: 3.9 | E12: 15 | F12: 0.05 | G12: 0.2 | K12: Jun | L12: 0 | M12: 0 | N12: 0 | O12: 0
A13: Jul | B13: None | C13: 0.1 | D13: 1.9 | E13: 15 | F13: 0 | G13: 0.3 | K13: Jul | L13: 0.1 | M13: 1.9 | N13: 0 | O13: 0.3 | Q13: Maximum: for 1/2 hourly and daily periods use the highest value across all operational combustion lines for the month
A14: Aug | B14: None | C14: 0.15 | D14: 2 | E14: 15 | F14: 0.1 | G14: 0.4 | K14: Aug | L14: 0.2 | M14: 2 | N14: 0.1 | O14: 0.4
A15: Sep | B15: None | C15: 0.1 | D15: 1.3 | E15: 15 | F15: 0.1 | G15: 0.3 | K15: Sep | L15: 0.1 | M15: 1.3 | N15: 0.1 | O15: 0.3
A16: Oct | B16: None | C16: 0.1 | D16: 2.7 | E16: 15 | F16: 0.05 | G16: 0.3 | K16: Oct | L16: 0.1 | M16: 2.4 | N16: 0.1 | O16: 0.3
A17: Nov | B17: None | C17: 0.05 | D17: 1.7 | E17: 15 | F17: 0.05 | G17: 0.3 | K17: Nov | L17: 0.1 | M17: 1.4 | N17: 0.1 | O17: 0.3
A18: Dec | B18: None | C18: 0.1 | D18: 2.2 | E18: 15 | F18: 0.05 | G18: 0.3 | K18: Dec | L18: 0.1 | M18: 1.8 | N18: 0.1 | O18: 0.3
K19: Annual | L19: =AVERAGE(L7:L18) -> 0.1166666667 | M19: =MAX(M7:M18) -> 2.5 | N19: =AVERAGE(N7:N18) -> 0.05833333333 | O19: =MAX(O7:O18) -> 0.4
J21: =+A5 -> 2025 | K21: mg/Nm3 | L21: Monthly 1/2 hourly mean | M21: Monthly 1/2 hourly maximum | N21: Monthly daily mean | O21: Monthly daily maximum
J22: A2 | K22: Jan | L22: 0 | M22: 0.2 | N22: 0 | O22: 0.1
K23: Feb | L23: 0 | M23: 0.4 | N23: 0 | O23: 0.1
K24: Mar | L24: 0 | M24: 1.3 | N24: 0 | O24: 0.1
K25: Apr | L25: 0.1 | M25: 5.4 | N25: 0 | O25: 0.1
K26: May | L26: 0.1 | M26: 1.7 | N26: 0 | O26: 0.2
K27: Jun | L27: 0.1 | M27: 3.9 | N27: 0.1 | O27: 0.2
K28: Jul | L28: 0.1 | M28: 1.1 | N28: 0 | O28: 0.1
K29: Aug | L29: 0.1 | M29: 1.6 | N29: 0.1 | O29: 0.2
K30: Sep | L30: 0.1 | M30: 0.8 | N30: 0.1 | O30: 0.2
K31: Oct | L31: 0.1 | M31: 2.7 | N31: 0 | O31: 0.2
K32: Nov | L32: 0 | M32: 1.7 | N32: 0 | O32: 0.1
K33: Dec | L33: 0.1 | M33: 2.2 | N33: 0 | O33: 0.2
K34: Annual | L34: =AVERAGE(L22:L33) -> 0.06666666667 | M34: =MAX(M22:M33) -> 5.4 | N34: =AVERAGE(N22:N33) -> 0.025 | O34: =MAX(O22:O33) -> 0.2
J36: =+A5 -> 2025 | K36: mg/Nm3 | L36: Monthly 1/2 hourly mean | M36: Monthly 1/2 hourly maximum | N36: Monthly daily mean | O36: Monthly daily maximum
J37: A3 | K37: Jan
K38: Feb
K39: Mar
K40: Apr
K41: May
K42: Jun
K43: Jul
K44: Aug
K45: Sep
K46: Oct
K47: Nov
A48: Comments : | K48: Dec
A49: An indicated ELV value of zero in the table above means that no ammonia limit is/was set in the permit. | K49: Annual | L49: =AVERAGE(L37:L48) ->  | M49: =MAX(M37:M48) -> 0 | N49: =AVERAGE(N37:N48) ->  | O49: =MAX(O37:O48) -> 0
J51: =+A5 -> 2025 | K51: mg/Nm3 | L51: Monthly 1/2 hourly mean | M51: Monthly 1/2 hourly maximum | N51: Monthly daily mean | O51: Monthly daily maximum
J52: A4 | K52: Jan
K53: Feb
K54: Mar
K55: Apr
K56: May
K57: Jun
K58: Jul
K59: Aug
K60: Sep
K61: Oct
K62: Nov
K63: Dec
K64: Annual | L64: =AVERAGE(L52:L63) ->  | M64: =MAX(M52:M63) -> 0 | N64: =AVERAGE(N52:N63) ->  | O64: =MAX(O52:O63) -> 0
J66: =+A5 -> 2025 | K66: mg/Nm3 | L66: Monthly 1/2 hourly mean | M66: Monthly 1/2 hourly maximum | N66: Monthly daily mean | O66: Monthly daily maximum
J67: A5 | K67: Jan
K68: Feb
K69: Mar
K70: Apr
K71: May
K72: Jun
K73: Jul
K74: Aug
K75: Sep
K76: Oct
K77: Nov
K78: Dec
K79: Annual | L79: =AVERAGE(L67:L78) ->  | M79: =MAX(M67:M78) -> 0 | N79: =AVERAGE(N67:N78) ->  | O79: =MAX(O67:O78) -> 0

Sheet Template changes log
A1: Log of changes to template (Environment Agency use only)
A3: Date | B3: Description of change | C3: New version number and date
A4: 2024-09-23 | B4: Air (periodic) tab: corrected symbol for Thallium to Tl
A5: 2024-09-23 | B5: Air (periodic) tab: removed last year's references to different emission limit values applying from 03/12/23 and updated all relevant ELVs
A6: 2024-09-23 | B6: Tabs for continuously monitored pollutants (HCl, SO2 etc.): changed terminology in table headings to improve clarity
A7: 2024-09-23 | B7: Tabs for continuously monitored pollutants (HCl, SO2 etc.): removed last year's references to different emission limit values applying from 03/12/23 and updated all relevant ELVs
A8: 2024-09-23 | B8: Perf 1 tab: updated formula for water usage to report m3 rather than litres and corrected error with formula copying operator name
A9: 2024-09-23 | B9: CO2 N2O tab: various changes made to notes to reflect the fact that most plants should now have calibrated CEMS and flow meters + some have C14 samplers and more up to date industry data | C9: Version 24b (for co-incinerators) - 23/09/24
A10: 2024-11-08 | B10: CO2 N2O tab: Changed the N2O CO2 equivalence factor from 298 to 265 in line with recently updated government greenhouse gas figures: https://www.gov.uk/government/publications/greenhouse-gas-reporting-conversion-factors-2024
A11: 2024-11-08 | B11: CO2 N2O tab: Added an additional requirement for municipal EfW plants to state the yearly average biogenic percentage of the waste by mass, and reference to a document which sets out a methodology for calculating NCV of waste from the results of C14 sampling.
A12: 2024-11-08 | B12: Permit Compliance tab: Two additional columns added + explanatory notes to the table entitled "Summary of non-compliances under the permit" to allow CCS scores to be stated where relevant.
A13: 2024-11-08 | B13: Residue Quality tab: Note added explaining application of TOC and LOI limits and asking operators to report both metrics where measured. | C13: Version 24.1b (for co-incinerators) - 08/11/24
A14: 2024-11-27 | B14: Operational Summary tab: table added on start-ups and shut-downs | C14: Version 24.2b (for co-incinerators) -27/11/24
A15: 2025-11-27 | B15: Cover Page: Print as PDF and Print Report and pdf buttons deleted and blank columns removed; contents page deleted | C15: Version 25.1b (for co-incinerators) - 27/11/25
A16: 2025-11-27 | B16: Residue Quality tab renamed to "Residues", and Summary of residue handling table moved from Operational Summary tab to Residues tab.
A17: 2025-11-27 | B17: Various changes made to the Operational Data tab including • Reformatting of the rows under the Operational data heading (Rows 3-8) to make it clearer what information is required. • Amendment of the rows under the Energy Usage / Export heading (Rows 26-32) to calculate an “indicative parasitic load” (now excluding energy imported) • Amendment of the unit for gas usage from cubic feet to cubic metres (Row 50) • Some amendments to the first 2 notes and other minor edits • Deleted "Overall Availability, mean avg. of all lines, hrs" row
A18: 2025-11-27 | B18: Operational Summary tab: Note added requiring all emergency shut-downs be listed, irrespective of whether or not they were reportable.
A19: 2025-11-27 | B19: CO2 N2O tab: Note added to ask operators to ensure that relevant data reported here matches that which will be submitted under the Pollution Inventory
